{"text_format":"1","workbook":"xlsx","n_sheets":16,"sheets":["Dashboard","Desired Accomplishment","List of Keywords","Headlines","Selling Points","Ad Body","Follow-up Type","Incentives","Call to Action","Testimonials","Ad Keys","Niche","Ad Tracker","Follow-up Tracker","Site List","Classified Ads"],"not_rendered":{"charts":4,"images":0,"macros":1,"external_links":0,"defined_names":16,"comments":3,"pivot_tables":6},"unopened":[],"bounds":{"document_bytes":16777216,"sheet_cells":100000,"rows_first":2000,"rows_last":500,"rows_between":2000,"halvings":0,"cell_chars":16384,"cell_head_chars":4096},"cells_cut":0,"cells_raw":0,"read":"whole","date_system":"1900"}

{"sheet":"Dashboard","index":0,"n_rows":51,"n_cols":18,"rows_kept":51,"cut":false,"hidden":false,"merged":[]}
["Workbook Contents",null,null,null,null,null,null,null,"Get Obline Help"]
["Worksheet In Protected Mode"]
[]
["1. Desired Accomplishment Worksheet",null,null,"6. Follow-up Type Worksheet",null,"11. Niche Worksheet"]
["2. List of Keywords Worksheet",null,null,"7. Incentives Worksheet",null,"12. Ad Tracker Worksheet"]
["3. Headlines Worksheet",null,null,"8. Call to Action Worksheet",null,"13. Follow-up Tracker Worksheet"]
["4. Selling Points Worksheet",null,null,"9. Testimonials Worksheet",null,"14. Site List"]
["5. Ad Body Worksheet",null,null,"10. Ad Keys Worksheet",null,"15. Classified Ads"]
[]
["Dashboard"]
[]
[]
["Follow-up Tracker",null,null,null,null,null,null,null,null,null,"Ad Tracker"]
[]
[]
["Source / Key","Total",null,"Result","Total",null,"FU Type","Total",null,null,null,"Values",null,null,null,null,"Values"]
["A1",1,null,"Sale",1,null,"Phone",1,null,null,"Publication/Online Service","# of Postings","Leads",null,null,"Product/Service"," Leads","Cost"]
["(blank)",null,null,"(blank)",null,null,"(blank)",null,null,null,"(blank)",99,0,null,null,null,0]
["Grand Total",1,null,"Grand Total",1,null,"Grand Total",1,null,null,"Etsy",1,1,null,null,"{Enter First Product/Service Here}",1,0]
[null,null,null,null,null,null,null,null,null,null,"Grand Total",100,1,null,null,"Grand Total",1,0]
[]
[]
[]
[]
[]
[]
[]
[]
[]
[]
[]
[]
[]
[]
[]
[]
[]
[]
[]
[]
[]
[]
[]
[]
[]
[]
[]
["Year","Month","# of Leads"]
["2023","Jul",1]
["2023 Total",null,1]
["Grand Total",null,1]

{"sheet":"Desired Accomplishment","index":1,"n_rows":12,"n_cols":3,"rows_kept":12,"cut":false,"hidden":false,"merged":[[0,0,0,2],[3,0,3,1]]}
["Desired Accomplishment Worksheet"]
["Worksheet In Protected Mode"]
[]
["Overall Ad Objective:"]
[null,"Advertising Budget:"]
[]
["My Plan","Direct Ad Goal","Notes"]
[null,"Catch reader’s attention"]
[null,"Have reader visit my website, social network page, or business"]
[null,"Have reader immediately place an order"]
[null,"Generate short and long term leads"]
[null,"Other"]

{"sheet":"List of Keywords","index":2,"n_rows":104,"n_cols":6,"rows_kept":104,"cut":false,"hidden":false,"merged":[]}
["List of kewords to use in headlines, ad bodies, and follow-ups"]
["Worksheet In Protected Mode"]
[]
["#","Keyword","Headline","Ad Body","Follow-up","Notes"]
[1,"Advice to","X","X","X"]
[2,"Amazing"]
[3,"Announcing"]
[4,"Astonishing"]
[5,"Bargain"]
[6,"Breakthrough"]
[7,"Change"]
[8,"Discover"]
[9,"Do You"]
[10,"Download"]
[11,"Electrifying"]
[12,"Fabulous"]
[13,"Fact"]
[14,"Finally"]
[15,"Free"]
[16,"Hate"]
[17,"Here "]
[18,"How Much"]
[19,"How to"]
[20,"How Would"]
[21,"Improve"]
[22,"Learn To"]
[23,"Life"]
[24,"Love"]
[25,"Made Easy"]
[26,"Marvelous"]
[27,"New"]
[28,"Now"]
[29,"Only"]
[30,"Pioneering"]
[31,"Protect"]
[32,"Proven"]
[33,"Sale"]
[34,"Secret"]
[35,"Solution"]
[36,"Start To"]
[37,"This"]
[38,"Tips"]
[39,"Truth of"]
[40,"Unbeatable"]
[41,"Unique"]
[42,"Urgent"]
[43,"Yes"]
[44,"You"]
[45,"You Need To"]
[46]
[47]
[48]
[49]
[50]
[51]
[52]
[53]
[54]
[55]
[56]
[57]
[58]
[59]
[60]
[61]
[62]
[63]
[64]
[65]
[66]
[67]
[68]
[69]
[70]
[71]
[72]
[73]
[74]
[75]
[76]
[77]
[78]
[79]
[80]
[81]
[82]
[83]
[84]
[85]
[86]
[87]
[88]
[89]
[90]
[91]
[92]
[93]
[94]
[95]
[96]
[97]
[98]
[99]
[100]

{"sheet":"Headlines","index":3,"n_rows":34,"n_cols":4,"rows_kept":34,"cut":false,"hidden":false,"merged":[]}
["Headlines Worksheet"]
["Worksheet In Protected Mode"]
[]
["#","Possible Headline","Number of Words","Notes"]
[1,null,{"$f":"IF(ISBLANK(B5),\"\",LEN(B5)-LEN(SUBSTITUTE(B5,\" \",\"\"))+1)","v":""}]
[2,null,""]
[3,null,""]
[4,null,""]
[5,null,""]
[6,null,""]
[7,null,""]
[8,null,""]
[9,null,""]
[10,null,""]
[11,null,""]
[12,null,""]
[13,null,""]
[14,null,""]
[15,null,""]
[16,null,""]
[17,null,""]
[18,null,""]
[19,null,""]
[20,null,""]
[21,null,""]
[22,null,""]
[23,null,""]
[24,null,""]
[25,null,""]
[26,null,""]
[27,null,""]
[28,null,""]
[29,null,""]
[30,null,""]

{"sheet":"Selling Points","index":4,"n_rows":18,"n_cols":4,"rows_kept":18,"cut":false,"hidden":false,"merged":[]}
["Selling Points Worksheet"]
["Worksheet In Protected Mode"]
[]
["#","Selling Point","Selling Point Type","Notes"]
[1,null,"               Better health \n               More comfort \n               More money \n               More leisure time\n               Better self-esteem \n               Greater success \n               Greater security \n               Entertainment \n               Quality \n               Exclusive Advantage\n               Other"]
[2,null,"               Better health \n               More comfort \n               More money \n               More leisure time\n               Better self-esteem \n               Greater success \n               Greater security \n               Entertainment \n               Quality \n               Exclusive Advantage\n               Other"]
[3,null,"               Better health \n               More comfort \n               More money \n               More leisure time\n               Better self-esteem \n               Greater success \n               Greater security \n               Entertainment \n               Quality \n               Exclusive Advantage\n               Other"]
[4,null,"               Better health \n               More comfort \n               More money \n               More leisure time\n               Better self-esteem \n               Greater success \n               Greater security \n               Entertainment \n               Quality \n               Exclusive Advantage\n               Other"]
[5,null,"               Better health \n               More comfort \n               More money \n               More leisure time\n               Better self-esteem \n               Greater success \n               Greater security \n               Entertainment \n               Quality \n               Exclusive Advantage\n               Other"]
[6,null,"               Better health \n               More comfort \n               More money \n               More leisure time\n               Better self-esteem \n               Greater success \n               Greater security \n               Entertainment \n               Quality \n               Exclusive Advantage\n               Other"]
[7,null,"               Better health \n               More comfort \n               More money \n               More leisure time\n               Better self-esteem \n               Greater success \n               Greater security \n               Entertainment \n               Quality \n               Exclusive Advantage\n               Other"]
[8,null,"               Better health \n               More comfort \n               More money \n               More leisure time\n               Better self-esteem \n               Greater success \n               Greater security \n               Entertainment \n               Quality \n               Exclusive Advantage\n               Other"]
[9,null,"               Better health \n               More comfort \n               More money \n               More leisure time\n               Better self-esteem \n               Greater success \n               Greater security \n               Entertainment \n               Quality \n               Exclusive Advantage\n               Other"]
[10,null,"               Better health \n               More comfort \n               More money \n               More leisure time\n               Better self-esteem \n               Greater success \n               Greater security \n               Entertainment \n               Quality \n               Exclusive Advantage\n               Other"]
[11,null,"               Better health \n               More comfort \n               More money \n               More leisure time\n               Better self-esteem \n               Greater success \n               Greater security \n               Entertainment \n               Quality \n               Exclusive Advantage\n               Other"]
[12,null,"               Better health \n               More comfort \n               More money \n               More leisure time\n               Better self-esteem \n               Greater success \n               Greater security \n               Entertainment \n               Quality \n               Exclusive Advantage\n               Other"]
[13,null,"               Better health \n               More comfort \n               More money \n               More leisure time\n               Better self-esteem \n               Greater success \n               Greater security \n               Entertainment \n               Quality \n               Exclusive Advantage\n               Other"]
[14,null,"               Better health \n               More comfort \n               More money \n               More leisure time\n               Better self-esteem \n               Greater success \n               Greater security \n               Entertainment \n               Quality \n               Exclusive Advantage\n               Other"]

{"sheet":"Ad Body","index":5,"n_rows":20,"n_cols":4,"rows_kept":20,"cut":false,"hidden":false,"merged":[[0,0,0,3]]}
["Ad Body Worksheet"]
["Worksheet In Protected Mode"]
[]
["#","Possible Ad Body","Number of Words","Notes"]
[1,null,{"$f":"IF(ISBLANK(B5),\"\",LEN(B5)-LEN(SUBSTITUTE(B5,\" \",\"\"))+1)","v":""}]
[2,null,""]
[3,null,""]
[4,null,""]
[5,null,""]
[6,null,""]
[7,null,""]
[8,null,""]
[9,null,""]
[10,null,""]
[11,null,""]
[12,null,""]
[13,null,{"$f":"IF(ISBLANK(B17),\"\",LEN(B17)-LEN(SUBSTITUTE(B17,\" \",\"\"))+1)","v":""}]
[14,null,""]
[15,null,""]
[16,null,""]

{"sheet":"Follow-up Type","index":6,"n_rows":5,"n_cols":3,"rows_kept":5,"cut":false,"hidden":false,"merged":[[0,0,0,2]]}
["Follow-up Type Worksheet"]
[]
["Type","Format\n(check all that apply)","Notes"]
["\n               Electronic","\n               Attachment (e.g., PDF)\n\n               Website\n\n              Social Media Page\n\n               Video\n\n               Audio\n\n               Other\n"]
["\n               Physical","\n               Newsletter\n\n               Brochure\n\n               Catalog\n\n               Flyer\n\n               Audio CD/Flash Drive\n\n               Video CD/Flash Drive\n\n               Other\n"]

{"sheet":"Incentives","index":7,"n_rows":16,"n_cols":4,"rows_kept":16,"cut":false,"hidden":false,"merged":[[0,0,0,3]]}
["Incentive Worksheet"]
["Worksheet In Protected Mode"]
[]
["#","Incentive Idea","Incentive Location\n(check all that apply)","Notes"]
[1,null,"\n\n               Ad Body\n\n               Follow-up\n\n              Other"]
[2,null,"\n\n               Ad Body\n\n               Follow-up\n\n              Other"]
[3,null,"\n\n               Ad Body\n\n               Follow-up\n\n              Other"]
[4,null,"\n\n               Ad Body\n\n               Follow-up\n\n              Other"]
[5,null,"\n\n               Ad Body\n\n               Follow-up\n\n              Other"]
[6,null,"\n\n               Ad Body\n\n               Follow-up\n\n              Other"]
[7,null,"\n\n               Ad Body\n\n               Follow-up\n\n              Other"]
[8,null,"\n\n               Ad Body\n\n               Follow-up\n\n              Other"]
[9,null,"\n\n               Ad Body\n\n               Follow-up\n\n              Other"]
[10,null,"\n\n               Ad Body\n\n               Follow-up\n\n              Other"]
[11,null,"\n\n               Ad Body\n\n               Follow-up\n\n              Other"]
[12,null,"\n\n               Ad Body\n\n               Follow-up\n\n              Other"]

{"sheet":"Call to Action","index":8,"n_rows":16,"n_cols":4,"rows_kept":16,"cut":false,"hidden":false,"merged":[[0,0,0,3]]}
["Call to Action Worksheet"]
["Worksheet In Protected Mode"]
[]
["#","Call To Action","Action Location\n(check all that apply)","Notes"]
[1,null,"\n\n               Ad Body\n\n               Follow-up\n\n              Other"]
[2,null,"\n\n               Ad Body\n\n               Follow-up\n\n              Other"]
[3,null,"\n\n               Ad Body\n\n               Follow-up\n\n              Other"]
[4,null,"\n\n               Ad Body\n\n               Follow-up\n\n              Other"]
[5,null,"\n\n               Ad Body\n\n               Follow-up\n\n              Other"]
[6,null,"\n\n               Ad Body\n\n               Follow-up\n\n              Other"]
[7,null,"\n\n               Ad Body\n\n               Follow-up\n\n              Other"]
[8,null,"\n\n               Ad Body\n\n               Follow-up\n\n              Other"]
[9,null,"\n\n               Ad Body\n\n               Follow-up\n\n              Other"]
[10,null,"\n\n               Ad Body\n\n               Follow-up\n\n              Other"]
[11,null,"\n\n               Ad Body\n\n               Follow-up\n\n              Other"]
[12,null,"\n\n               Ad Body\n\n               Follow-up\n\n              Other"]

{"sheet":"Testimonials","index":9,"n_rows":16,"n_cols":6,"rows_kept":16,"cut":false,"hidden":false,"merged":[[0,0,0,4]]}
["Testimonials Worksheet"]
["Worksheet In Protected Mode"]
[]
["#","Person To Quote","Place To Quote\n(check all that apply)","Type","Quote","Notes"]
[1,null,"\n\n               Ad Body\n\n               Follow-up\n\n              Other","\n\n               Embedded\n\n               Linked\n"]
[2,null,"\n\n               Ad Body\n\n               Follow-up\n\n              Other","\n\n               Embedded\n\n               Linked\n"]
[3,null,"\n\n               Ad Body\n\n               Follow-up\n\n              Other","\n\n               Embedded\n\n               Linked\n"]
[4,null,"\n\n               Ad Body\n\n               Follow-up\n\n              Other","\n\n               Embedded\n\n               Linked\n"]
[5,null,"\n\n               Ad Body\n\n               Follow-up\n\n              Other","\n\n               Embedded\n\n               Linked\n"]
[6,null,"\n\n               Ad Body\n\n               Follow-up\n\n              Other","\n\n               Embedded\n\n               Linked\n"]
[7,null,"\n\n               Ad Body\n\n               Follow-up\n\n              Other","\n\n               Embedded\n\n               Linked\n"]
[8,null,"\n\n               Ad Body\n\n               Follow-up\n\n              Other","\n\n               Embedded\n\n               Linked\n"]
[9,null,"\n\n               Ad Body\n\n               Follow-up\n\n              Other","\n\n               Embedded\n\n               Linked\n"]
[10,null,"\n\n               Ad Body\n\n               Follow-up\n\n              Other","\n\n               Embedded\n\n               Linked\n"]
[11,null,"\n\n               Ad Body\n\n               Follow-up\n\n              Other","\n\n               Embedded\n\n               Linked\n"]
[12,null,"\n\n               Ad Body\n\n               Follow-up\n\n              Other","\n\n               Embedded\n\n               Linked\n"]

{"sheet":"Ad Keys","index":10,"n_rows":16,"n_cols":4,"rows_kept":16,"cut":false,"hidden":false,"merged":[[0,0,0,3]]}
["Ad Keys Worksheet"]
["Worksheet In Protected Mode"]
[]
["#","Key","Place To Key\n(check all that apply)","Notes"]
[1,null,"\n               Headline\n\n               Ad Body\n\n               Follow-up\n\n               Shopping Cart Checkout\n\n               Other"]
[2,null,"\n               Headline\n\n               Ad Body\n\n               Follow-up\n\n               Shopping Cart Checkout\n\n               Other"]
[3,null,"\n               Headline\n\n               Ad Body\n\n               Follow-up\n\n               Shopping Cart Checkout\n\n               Other"]
[4,null,"\n               Headline\n\n               Ad Body\n\n               Follow-up\n\n               Shopping Cart Checkout\n\n               Other"]
[5,null,"\n               Headline\n\n               Ad Body\n\n               Follow-up\n\n               Shopping Cart Checkout\n\n               Other"]
[6,null,"\n               Headline\n\n               Ad Body\n\n               Follow-up\n\n               Shopping Cart Checkout\n\n               Other"]
[7,null,"\n               Headline\n\n               Ad Body\n\n               Follow-up\n\n               Shopping Cart Checkout\n\n               Other"]
[8,null,"\n               Headline\n\n               Ad Body\n\n               Follow-up\n\n               Shopping Cart Checkout\n\n               Other"]
[9,null,"\n               Headline\n\n               Ad Body\n\n               Follow-up\n\n               Shopping Cart Checkout\n\n               Other"]
[10,null,"\n               Headline\n\n               Ad Body\n\n               Follow-up\n\n               Shopping Cart Checkout\n\n               Other"]
[11,null,"\n               Headline\n\n               Ad Body\n\n               Follow-up\n\n               Shopping Cart Checkout\n\n               Other"]
[12,null,"\n               Headline\n\n               Ad Body\n\n               Follow-up\n\n               Shopping Cart Checkout\n\n               Other"]

{"sheet":"Niche","index":11,"n_rows":16,"n_cols":5,"rows_kept":16,"cut":false,"hidden":false,"merged":[[0,0,0,4]]}
["Niche Worksheet"]
["Worksheet In Protected Mode"]
[]
["#","Target Group","Publication & Category","Type","Notes"]
[1,null,null,"\n               Online\n\n               Printed\n\n               Other"]
[2,null,null,"\n               Online\n\n               Printed\n\n               Other"]
[3,null,null,"\n               Online\n\n               Printed\n\n               Other"]
[4,null,null,"\n               Online\n\n               Printed\n\n               Other"]
[5,null,null,"\n               Online\n\n               Printed\n\n               Other"]
[6,null,null,"\n               Online\n\n               Printed\n\n               Other"]
[7,null,null,"\n               Online\n\n               Printed\n\n               Other"]
[8,null,null,"\n               Online\n\n               Printed\n\n               Other"]
[9,null,null,"\n               Online\n\n               Printed\n\n               Other"]
[10,null,null,"\n               Online\n\n               Printed\n\n               Other"]
[11,null,null,"\n               Online\n\n               Printed\n\n               Other"]
[12,null,null,"\n               Online\n\n               Printed\n\n               Other"]

{"sheet":"Ad Tracker","index":12,"n_rows":105,"n_cols":10,"rows_kept":105,"cut":false,"hidden":false,"merged":[]}
["Ad Tracker"]
["Worksheet In Protected Mode"]
[]
["#","Date","Publication/Online Service\n{Select From Dropdown}","Type\n{Will Populate}","Tracking Code ","Product/Service\n{Will Populate}","Ad Cost","Total Leads","Cost Per Lead","Notes"]
[1,"2023-07-15","Etsy",{"$f":"IF(ISBLANK(AdTracker[[#This Row],[Publication/Online Service\n{Select From Dropdown}]]),\"\",VLOOKUP(AdTracker[[#This Row],[Publication/Online Service\n{Select From Dropdown}]],SiteList[],3,TRUE))","v":"Selling"},"A1",{"$f":"IF(ISBLANK(AdTracker[[#This Row],[Tracking Code ]]),\"\",VLOOKUP(AdTracker[[#This Row],[Tracking Code ]],ClassifiedAds[],2,TRUE))","v":"{Enter First Product/Service Here}"},0,{"$f":"COUNTIF(FollowUps[Source / Key],AdTracker[[#This Row],[Tracking Code ]])","v":1},{"$f":"IF(H5=0,\"\",G5/H5)","v":0}]
[{"$f":"A5+1","v":2},null,null,{"$f":"IF(ISBLANK(AdTracker[[#This Row],[Publication/Online Service\n{Select From Dropdown}]]),\"\",VLOOKUP(AdTracker[[#This Row],[Publication/Online Service\n{Select From Dropdown}]],SiteList[],3))","v":""},null,{"$f":"IF(ISBLANK(AdTracker[[#This Row],[Tracking Code ]]),\"\",VLOOKUP(AdTracker[[#This Row],[Tracking Code ]],ClassifiedAds[],2,TRUE))","v":""},null,{"$f":"COUNTIF(FollowUps[Source / Key],AdTracker[[#This Row],[Tracking Code ]])","v":0},""]
[{"$f":"A6+1","v":3},null,null,{"$f":"IF(ISBLANK(AdTracker[[#This Row],[Publication/Online Service\n{Select From Dropdown}]]),\"\",VLOOKUP(AdTracker[[#This Row],[Publication/Online Service\n{Select From Dropdown}]],SiteList[],3,TRUE))","v":""},null,{"$f":"IF(ISBLANK(AdTracker[[#This Row],[Tracking Code ]]),\"\",VLOOKUP(AdTracker[[#This Row],[Tracking Code ]],ClassifiedAds[],2,TRUE))","v":""},null,{"$f":"COUNTIF(FollowUps[Source / Key],AdTracker[[#This Row],[Tracking Code ]])","v":0},""]
[4,null,null,{"$f":"IF(ISBLANK(AdTracker[[#This Row],[Publication/Online Service\n{Select From Dropdown}]]),\"\",VLOOKUP(AdTracker[[#This Row],[Publication/Online Service\n{Select From Dropdown}]],SiteList[],3,TRUE))","v":""},null,{"$f":"IF(ISBLANK(AdTracker[[#This Row],[Tracking Code ]]),\"\",VLOOKUP(AdTracker[[#This Row],[Tracking Code ]],ClassifiedAds[],2,TRUE))","v":""},null,{"$f":"COUNTIF(FollowUps[Source / Key],AdTracker[[#This Row],[Tracking Code ]])","v":0},""]
[5,null,null,{"$f":"IF(ISBLANK(AdTracker[[#This Row],[Publication/Online Service\n{Select From Dropdown}]]),\"\",VLOOKUP(AdTracker[[#This Row],[Publication/Online Service\n{Select From Dropdown}]],SiteList[],3,TRUE))","v":""},null,{"$f":"IF(ISBLANK(AdTracker[[#This Row],[Tracking Code ]]),\"\",VLOOKUP(AdTracker[[#This Row],[Tracking Code ]],ClassifiedAds[],2,TRUE))","v":""},null,{"$f":"COUNTIF(FollowUps[Source / Key],AdTracker[[#This Row],[Tracking Code ]])","v":0},""]
[6,null,null,{"$f":"IF(ISBLANK(AdTracker[[#This Row],[Publication/Online Service\n{Select From Dropdown}]]),\"\",VLOOKUP(AdTracker[[#This Row],[Publication/Online Service\n{Select From Dropdown}]],SiteList[],3,TRUE))","v":""},null,{"$f":"IF(ISBLANK(AdTracker[[#This Row],[Tracking Code ]]),\"\",VLOOKUP(AdTracker[[#This Row],[Tracking Code ]],ClassifiedAds[],2,TRUE))","v":""},null,{"$f":"COUNTIF(FollowUps[Source / Key],AdTracker[[#This Row],[Tracking Code ]])","v":0},""]
[7,null,null,{"$f":"IF(ISBLANK(AdTracker[[#This Row],[Publication/Online Service\n{Select From Dropdown}]]),\"\",VLOOKUP(AdTracker[[#This Row],[Publication/Online Service\n{Select From Dropdown}]],SiteList[],3,TRUE))","v":""},null,{"$f":"IF(ISBLANK(AdTracker[[#This Row],[Tracking Code ]]),\"\",VLOOKUP(AdTracker[[#This Row],[Tracking Code ]],ClassifiedAds[],2,TRUE))","v":""},null,{"$f":"COUNTIF(FollowUps[Source / Key],AdTracker[[#This Row],[Tracking Code ]])","v":0},""]
[8,null,null,{"$f":"IF(ISBLANK(AdTracker[[#This Row],[Publication/Online Service\n{Select From Dropdown}]]),\"\",VLOOKUP(AdTracker[[#This Row],[Publication/Online Service\n{Select From Dropdown}]],SiteList[],3,TRUE))","v":""},null,{"$f":"IF(ISBLANK(AdTracker[[#This Row],[Tracking Code ]]),\"\",VLOOKUP(AdTracker[[#This Row],[Tracking Code ]],ClassifiedAds[],2,TRUE))","v":""},null,{"$f":"COUNTIF(FollowUps[Source / Key],AdTracker[[#This Row],[Tracking Code ]])","v":0},""]
[9,null,null,{"$f":"IF(ISBLANK(AdTracker[[#This Row],[Publication/Online Service\n{Select From Dropdown}]]),\"\",VLOOKUP(AdTracker[[#This Row],[Publication/Online Service\n{Select From Dropdown}]],SiteList[],3,TRUE))","v":""},null,{"$f":"IF(ISBLANK(AdTracker[[#This Row],[Tracking Code ]]),\"\",VLOOKUP(AdTracker[[#This Row],[Tracking Code ]],ClassifiedAds[],2,TRUE))","v":""},null,{"$f":"COUNTIF(FollowUps[Source / Key],AdTracker[[#This Row],[Tracking Code ]])","v":0},""]
[10,null,null,{"$f":"IF(ISBLANK(AdTracker[[#This Row],[Publication/Online Service\n{Select From Dropdown}]]),\"\",VLOOKUP(AdTracker[[#This Row],[Publication/Online Service\n{Select From Dropdown}]],SiteList[],3,TRUE))","v":""},null,{"$f":"IF(ISBLANK(AdTracker[[#This Row],[Tracking Code ]]),\"\",VLOOKUP(AdTracker[[#This Row],[Tracking Code ]],ClassifiedAds[],2,TRUE))","v":""},null,{"$f":"COUNTIF(FollowUps[Source / Key],AdTracker[[#This Row],[Tracking Code ]])","v":0},""]
[11,null,null,{"$f":"IF(ISBLANK(AdTracker[[#This Row],[Publication/Online Service\n{Select From Dropdown}]]),\"\",VLOOKUP(AdTracker[[#This Row],[Publication/Online Service\n{Select From Dropdown}]],SiteList[],3,TRUE))","v":""},null,{"$f":"IF(ISBLANK(AdTracker[[#This Row],[Tracking Code ]]),\"\",VLOOKUP(AdTracker[[#This Row],[Tracking Code ]],ClassifiedAds[],2,TRUE))","v":""},null,{"$f":"COUNTIF(FollowUps[Source / Key],AdTracker[[#This Row],[Tracking Code ]])","v":0},""]
[12,null,null,{"$f":"IF(ISBLANK(AdTracker[[#This Row],[Publication/Online Service\n{Select From Dropdown}]]),\"\",VLOOKUP(AdTracker[[#This Row],[Publication/Online Service\n{Select From Dropdown}]],SiteList[],3,TRUE))","v":""},null,{"$f":"IF(ISBLANK(AdTracker[[#This Row],[Tracking Code ]]),\"\",VLOOKUP(AdTracker[[#This Row],[Tracking Code ]],ClassifiedAds[],2,TRUE))","v":""},null,{"$f":"COUNTIF(FollowUps[Source / Key],AdTracker[[#This Row],[Tracking Code ]])","v":0},""]
[13,null,null,{"$f":"IF(ISBLANK(AdTracker[[#This Row],[Publication/Online Service\n{Select From Dropdown}]]),\"\",VLOOKUP(AdTracker[[#This Row],[Publication/Online Service\n{Select From Dropdown}]],SiteList[],3,TRUE))","v":""},null,{"$f":"IF(ISBLANK(AdTracker[[#This Row],[Tracking Code ]]),\"\",VLOOKUP(AdTracker[[#This Row],[Tracking Code ]],ClassifiedAds[],2,TRUE))","v":""},null,{"$f":"COUNTIF(FollowUps[Source / Key],AdTracker[[#This Row],[Tracking Code ]])","v":0},""]
[14,null,null,{"$f":"IF(ISBLANK(AdTracker[[#This Row],[Publication/Online Service\n{Select From Dropdown}]]),\"\",VLOOKUP(AdTracker[[#This Row],[Publication/Online Service\n{Select From Dropdown}]],SiteList[],3,TRUE))","v":""},null,{"$f":"IF(ISBLANK(AdTracker[[#This Row],[Tracking Code ]]),\"\",VLOOKUP(AdTracker[[#This Row],[Tracking Code ]],ClassifiedAds[],2,TRUE))","v":""},null,{"$f":"COUNTIF(FollowUps[Source / Key],AdTracker[[#This Row],[Tracking Code ]])","v":0},""]
[15,null,null,{"$f":"IF(ISBLANK(AdTracker[[#This Row],[Publication/Online Service\n{Select From Dropdown}]]),\"\",VLOOKUP(AdTracker[[#This Row],[Publication/Online Service\n{Select From Dropdown}]],SiteList[],3,TRUE))","v":""},null,{"$f":"IF(ISBLANK(AdTracker[[#This Row],[Tracking Code ]]),\"\",VLOOKUP(AdTracker[[#This Row],[Tracking Code ]],ClassifiedAds[],2,TRUE))","v":""},null,{"$f":"COUNTIF(FollowUps[Source / Key],AdTracker[[#This Row],[Tracking Code ]])","v":0},""]
[16,null,null,{"$f":"IF(ISBLANK(AdTracker[[#This Row],[Publication/Online Service\n{Select From Dropdown}]]),\"\",VLOOKUP(AdTracker[[#This Row],[Publication/Online Service\n{Select From Dropdown}]],SiteList[],3,TRUE))","v":""},null,{"$f":"IF(ISBLANK(AdTracker[[#This Row],[Tracking Code ]]),\"\",VLOOKUP(AdTracker[[#This Row],[Tracking Code ]],ClassifiedAds[],2,TRUE))","v":""},null,{"$f":"COUNTIF(FollowUps[Source / Key],AdTracker[[#This Row],[Tracking Code ]])","v":0},""]
[17,null,null,{"$f":"IF(ISBLANK(AdTracker[[#This Row],[Publication/Online Service\n{Select From Dropdown}]]),\"\",VLOOKUP(AdTracker[[#This Row],[Publication/Online Service\n{Select From Dropdown}]],SiteList[],3,TRUE))","v":""},null,{"$f":"IF(ISBLANK(AdTracker[[#This Row],[Tracking Code ]]),\"\",VLOOKUP(AdTracker[[#This Row],[Tracking Code ]],ClassifiedAds[],2,TRUE))","v":""},null,{"$f":"COUNTIF(FollowUps[Source / Key],AdTracker[[#This Row],[Tracking Code ]])","v":0},""]
[18,null,null,{"$f":"IF(ISBLANK(AdTracker[[#This Row],[Publication/Online Service\n{Select From Dropdown}]]),\"\",VLOOKUP(AdTracker[[#This Row],[Publication/Online Service\n{Select From Dropdown}]],SiteList[],3,TRUE))","v":""},null,{"$f":"IF(ISBLANK(AdTracker[[#This Row],[Tracking Code ]]),\"\",VLOOKUP(AdTracker[[#This Row],[Tracking Code ]],ClassifiedAds[],2,TRUE))","v":""},null,{"$f":"COUNTIF(FollowUps[Source / Key],AdTracker[[#This Row],[Tracking Code ]])","v":0},""]
[19,null,null,{"$f":"IF(ISBLANK(AdTracker[[#This Row],[Publication/Online Service\n{Select From Dropdown}]]),\"\",VLOOKUP(AdTracker[[#This Row],[Publication/Online Service\n{Select From Dropdown}]],SiteList[],3,TRUE))","v":""},null,{"$f":"IF(ISBLANK(AdTracker[[#This Row],[Tracking Code ]]),\"\",VLOOKUP(AdTracker[[#This Row],[Tracking Code ]],ClassifiedAds[],2,TRUE))","v":""},null,{"$f":"COUNTIF(FollowUps[Source / Key],AdTracker[[#This Row],[Tracking Code ]])","v":0},""]
[20,null,null,{"$f":"IF(ISBLANK(AdTracker[[#This Row],[Publication/Online Service\n{Select From Dropdown}]]),\"\",VLOOKUP(AdTracker[[#This Row],[Publication/Online Service\n{Select From Dropdown}]],SiteList[],3,TRUE))","v":""},null,{"$f":"IF(ISBLANK(AdTracker[[#This Row],[Tracking Code ]]),\"\",VLOOKUP(AdTracker[[#This Row],[Tracking Code ]],ClassifiedAds[],2,TRUE))","v":""},null,{"$f":"COUNTIF(FollowUps[Source / Key],AdTracker[[#This Row],[Tracking Code ]])","v":0},""]
[21,null,null,{"$f":"IF(ISBLANK(AdTracker[[#This Row],[Publication/Online Service\n{Select From Dropdown}]]),\"\",VLOOKUP(AdTracker[[#This Row],[Publication/Online Service\n{Select From Dropdown}]],SiteList[],3,TRUE))","v":""},null,{"$f":"IF(ISBLANK(AdTracker[[#This Row],[Tracking Code ]]),\"\",VLOOKUP(AdTracker[[#This Row],[Tracking Code ]],ClassifiedAds[],2,TRUE))","v":""},null,{"$f":"COUNTIF(FollowUps[Source / Key],AdTracker[[#This Row],[Tracking Code ]])","v":0},""]
[22,null,null,{"$f":"IF(ISBLANK(AdTracker[[#This Row],[Publication/Online Service\n{Select From Dropdown}]]),\"\",VLOOKUP(AdTracker[[#This Row],[Publication/Online Service\n{Select From Dropdown}]],SiteList[],3,TRUE))","v":""},null,{"$f":"IF(ISBLANK(AdTracker[[#This Row],[Tracking Code ]]),\"\",VLOOKUP(AdTracker[[#This Row],[Tracking Code ]],ClassifiedAds[],2,TRUE))","v":""},null,{"$f":"COUNTIF(FollowUps[Source / Key],AdTracker[[#This Row],[Tracking Code ]])","v":0},""]
[23,null,null,{"$f":"IF(ISBLANK(AdTracker[[#This Row],[Publication/Online Service\n{Select From Dropdown}]]),\"\",VLOOKUP(AdTracker[[#This Row],[Publication/Online Service\n{Select From Dropdown}]],SiteList[],3,TRUE))","v":""},null,{"$f":"IF(ISBLANK(AdTracker[[#This Row],[Tracking Code ]]),\"\",VLOOKUP(AdTracker[[#This Row],[Tracking Code ]],ClassifiedAds[],2,TRUE))","v":""},null,{"$f":"COUNTIF(FollowUps[Source / Key],AdTracker[[#This Row],[Tracking Code ]])","v":0},""]
[24,null,null,{"$f":"IF(ISBLANK(AdTracker[[#This Row],[Publication/Online Service\n{Select From Dropdown}]]),\"\",VLOOKUP(AdTracker[[#This Row],[Publication/Online Service\n{Select From Dropdown}]],SiteList[],3,TRUE))","v":""},null,{"$f":"IF(ISBLANK(AdTracker[[#This Row],[Tracking Code ]]),\"\",VLOOKUP(AdTracker[[#This Row],[Tracking Code ]],ClassifiedAds[],2,TRUE))","v":""},null,{"$f":"COUNTIF(FollowUps[Source / Key],AdTracker[[#This Row],[Tracking Code ]])","v":0},""]
[25,null,null,{"$f":"IF(ISBLANK(AdTracker[[#This Row],[Publication/Online Service\n{Select From Dropdown}]]),\"\",VLOOKUP(AdTracker[[#This Row],[Publication/Online Service\n{Select From Dropdown}]],SiteList[],3,TRUE))","v":""},null,{"$f":"IF(ISBLANK(AdTracker[[#This Row],[Tracking Code ]]),\"\",VLOOKUP(AdTracker[[#This Row],[Tracking Code ]],ClassifiedAds[],2,TRUE))","v":""},null,{"$f":"COUNTIF(FollowUps[Source / Key],AdTracker[[#This Row],[Tracking Code ]])","v":0},""]
[26,null,null,{"$f":"IF(ISBLANK(AdTracker[[#This Row],[Publication/Online Service\n{Select From Dropdown}]]),\"\",VLOOKUP(AdTracker[[#This Row],[Publication/Online Service\n{Select From Dropdown}]],SiteList[],3,TRUE))","v":""},null,{"$f":"IF(ISBLANK(AdTracker[[#This Row],[Tracking Code ]]),\"\",VLOOKUP(AdTracker[[#This Row],[Tracking Code ]],ClassifiedAds[],2,TRUE))","v":""},null,{"$f":"COUNTIF(FollowUps[Source / Key],AdTracker[[#This Row],[Tracking Code ]])","v":0},""]
[27,null,null,{"$f":"IF(ISBLANK(AdTracker[[#This Row],[Publication/Online Service\n{Select From Dropdown}]]),\"\",VLOOKUP(AdTracker[[#This Row],[Publication/Online Service\n{Select From Dropdown}]],SiteList[],3,TRUE))","v":""},null,{"$f":"IF(ISBLANK(AdTracker[[#This Row],[Tracking Code ]]),\"\",VLOOKUP(AdTracker[[#This Row],[Tracking Code ]],ClassifiedAds[],2,TRUE))","v":""},null,{"$f":"COUNTIF(FollowUps[Source / Key],AdTracker[[#This Row],[Tracking Code ]])","v":0},""]
[28,null,null,{"$f":"IF(ISBLANK(AdTracker[[#This Row],[Publication/Online Service\n{Select From Dropdown}]]),\"\",VLOOKUP(AdTracker[[#This Row],[Publication/Online Service\n{Select From Dropdown}]],SiteList[],3,TRUE))","v":""},null,{"$f":"IF(ISBLANK(AdTracker[[#This Row],[Tracking Code ]]),\"\",VLOOKUP(AdTracker[[#This Row],[Tracking Code ]],ClassifiedAds[],2,TRUE))","v":""},null,{"$f":"COUNTIF(FollowUps[Source / Key],AdTracker[[#This Row],[Tracking Code ]])","v":0},""]
[29,null,null,{"$f":"IF(ISBLANK(AdTracker[[#This Row],[Publication/Online Service\n{Select From Dropdown}]]),\"\",VLOOKUP(AdTracker[[#This Row],[Publication/Online Service\n{Select From Dropdown}]],SiteList[],3,TRUE))","v":""},null,{"$f":"IF(ISBLANK(AdTracker[[#This Row],[Tracking Code ]]),\"\",VLOOKUP(AdTracker[[#This Row],[Tracking Code ]],ClassifiedAds[],2,TRUE))","v":""},null,{"$f":"COUNTIF(FollowUps[Source / Key],AdTracker[[#This Row],[Tracking Code ]])","v":0},""]
[30,null,null,{"$f":"IF(ISBLANK(AdTracker[[#This Row],[Publication/Online Service\n{Select From Dropdown}]]),\"\",VLOOKUP(AdTracker[[#This Row],[Publication/Online Service\n{Select From Dropdown}]],SiteList[],3,TRUE))","v":""},null,{"$f":"IF(ISBLANK(AdTracker[[#This Row],[Tracking Code ]]),\"\",VLOOKUP(AdTracker[[#This Row],[Tracking Code ]],ClassifiedAds[],2,TRUE))","v":""},null,{"$f":"COUNTIF(FollowUps[Source / Key],AdTracker[[#This Row],[Tracking Code ]])","v":0},""]
[31,null,null,{"$f":"IF(ISBLANK(AdTracker[[#This Row],[Publication/Online Service\n{Select From Dropdown}]]),\"\",VLOOKUP(AdTracker[[#This Row],[Publication/Online Service\n{Select From Dropdown}]],SiteList[],3,TRUE))","v":""},null,{"$f":"IF(ISBLANK(AdTracker[[#This Row],[Tracking Code ]]),\"\",VLOOKUP(AdTracker[[#This Row],[Tracking Code ]],ClassifiedAds[],2,TRUE))","v":""},null,{"$f":"COUNTIF(FollowUps[Source / Key],AdTracker[[#This Row],[Tracking Code ]])","v":0},""]
[32,null,null,{"$f":"IF(ISBLANK(AdTracker[[#This Row],[Publication/Online Service\n{Select From Dropdown}]]),\"\",VLOOKUP(AdTracker[[#This Row],[Publication/Online Service\n{Select From Dropdown}]],SiteList[],3,TRUE))","v":""},null,{"$f":"IF(ISBLANK(AdTracker[[#This Row],[Tracking Code ]]),\"\",VLOOKUP(AdTracker[[#This Row],[Tracking Code ]],ClassifiedAds[],2,TRUE))","v":""},null,{"$f":"COUNTIF(FollowUps[Source / Key],AdTracker[[#This Row],[Tracking Code ]])","v":0},""]
[33,null,null,{"$f":"IF(ISBLANK(AdTracker[[#This Row],[Publication/Online Service\n{Select From Dropdown}]]),\"\",VLOOKUP(AdTracker[[#This Row],[Publication/Online Service\n{Select From Dropdown}]],SiteList[],3,TRUE))","v":""},null,{"$f":"IF(ISBLANK(AdTracker[[#This Row],[Tracking Code ]]),\"\",VLOOKUP(AdTracker[[#This Row],[Tracking Code ]],ClassifiedAds[],2,TRUE))","v":""},null,{"$f":"COUNTIF(FollowUps[Source / Key],AdTracker[[#This Row],[Tracking Code ]])","v":0},{"$f":"IF(H37=0,\"\",G37/H37)","v":""}]
[34,null,null,{"$f":"IF(ISBLANK(AdTracker[[#This Row],[Publication/Online Service\n{Select From Dropdown}]]),\"\",VLOOKUP(AdTracker[[#This Row],[Publication/Online Service\n{Select From Dropdown}]],SiteList[],3,TRUE))","v":""},null,{"$f":"IF(ISBLANK(AdTracker[[#This Row],[Tracking Code ]]),\"\",VLOOKUP(AdTracker[[#This Row],[Tracking Code ]],ClassifiedAds[],2,TRUE))","v":""},null,{"$f":"COUNTIF(FollowUps[Source / Key],AdTracker[[#This Row],[Tracking Code ]])","v":0},""]
[35,null,null,{"$f":"IF(ISBLANK(AdTracker[[#This Row],[Publication/Online Service\n{Select From Dropdown}]]),\"\",VLOOKUP(AdTracker[[#This Row],[Publication/Online Service\n{Select From Dropdown}]],SiteList[],3,TRUE))","v":""},null,{"$f":"IF(ISBLANK(AdTracker[[#This Row],[Tracking Code ]]),\"\",VLOOKUP(AdTracker[[#This Row],[Tracking Code ]],ClassifiedAds[],2,TRUE))","v":""},null,{"$f":"COUNTIF(FollowUps[Source / Key],AdTracker[[#This Row],[Tracking Code ]])","v":0},""]
[36,null,null,{"$f":"IF(ISBLANK(AdTracker[[#This Row],[Publication/Online Service\n{Select From Dropdown}]]),\"\",VLOOKUP(AdTracker[[#This Row],[Publication/Online Service\n{Select From Dropdown}]],SiteList[],3,TRUE))","v":""},null,{"$f":"IF(ISBLANK(AdTracker[[#This Row],[Tracking Code ]]),\"\",VLOOKUP(AdTracker[[#This Row],[Tracking Code ]],ClassifiedAds[],2,TRUE))","v":""},null,{"$f":"COUNTIF(FollowUps[Source / Key],AdTracker[[#This Row],[Tracking Code ]])","v":0},""]
[37,null,null,{"$f":"IF(ISBLANK(AdTracker[[#This Row],[Publication/Online Service\n{Select From Dropdown}]]),\"\",VLOOKUP(AdTracker[[#This Row],[Publication/Online Service\n{Select From Dropdown}]],SiteList[],3,TRUE))","v":""},null,{"$f":"IF(ISBLANK(AdTracker[[#This Row],[Tracking Code ]]),\"\",VLOOKUP(AdTracker[[#This Row],[Tracking Code ]],ClassifiedAds[],2,TRUE))","v":""},null,{"$f":"COUNTIF(FollowUps[Source / Key],AdTracker[[#This Row],[Tracking Code ]])","v":0},""]
[38,null,null,{"$f":"IF(ISBLANK(AdTracker[[#This Row],[Publication/Online Service\n{Select From Dropdown}]]),\"\",VLOOKUP(AdTracker[[#This Row],[Publication/Online Service\n{Select From Dropdown}]],SiteList[],3,TRUE))","v":""},null,{"$f":"IF(ISBLANK(AdTracker[[#This Row],[Tracking Code ]]),\"\",VLOOKUP(AdTracker[[#This Row],[Tracking Code ]],ClassifiedAds[],2,TRUE))","v":""},null,{"$f":"COUNTIF(FollowUps[Source / Key],AdTracker[[#This Row],[Tracking Code ]])","v":0},""]
[39,null,null,{"$f":"IF(ISBLANK(AdTracker[[#This Row],[Publication/Online Service\n{Select From Dropdown}]]),\"\",VLOOKUP(AdTracker[[#This Row],[Publication/Online Service\n{Select From Dropdown}]],SiteList[],3,TRUE))","v":""},null,{"$f":"IF(ISBLANK(AdTracker[[#This Row],[Tracking Code ]]),\"\",VLOOKUP(AdTracker[[#This Row],[Tracking Code ]],ClassifiedAds[],2,TRUE))","v":""},null,{"$f":"COUNTIF(FollowUps[Source / Key],AdTracker[[#This Row],[Tracking Code ]])","v":0},""]
[40,null,null,{"$f":"IF(ISBLANK(AdTracker[[#This Row],[Publication/Online Service\n{Select From Dropdown}]]),\"\",VLOOKUP(AdTracker[[#This Row],[Publication/Online Service\n{Select From Dropdown}]],SiteList[],3,TRUE))","v":""},null,{"$f":"IF(ISBLANK(AdTracker[[#This Row],[Tracking Code ]]),\"\",VLOOKUP(AdTracker[[#This Row],[Tracking Code ]],ClassifiedAds[],2,TRUE))","v":""},null,{"$f":"COUNTIF(FollowUps[Source / Key],AdTracker[[#This Row],[Tracking Code ]])","v":0},""]
[41,null,null,{"$f":"IF(ISBLANK(AdTracker[[#This Row],[Publication/Online Service\n{Select From Dropdown}]]),\"\",VLOOKUP(AdTracker[[#This Row],[Publication/Online Service\n{Select From Dropdown}]],SiteList[],3,TRUE))","v":""},null,{"$f":"IF(ISBLANK(AdTracker[[#This Row],[Tracking Code ]]),\"\",VLOOKUP(AdTracker[[#This Row],[Tracking Code ]],ClassifiedAds[],2,TRUE))","v":""},null,{"$f":"COUNTIF(FollowUps[Source / Key],AdTracker[[#This Row],[Tracking Code ]])","v":0},""]
[42,null,null,{"$f":"IF(ISBLANK(AdTracker[[#This Row],[Publication/Online Service\n{Select From Dropdown}]]),\"\",VLOOKUP(AdTracker[[#This Row],[Publication/Online Service\n{Select From Dropdown}]],SiteList[],3,TRUE))","v":""},null,{"$f":"IF(ISBLANK(AdTracker[[#This Row],[Tracking Code ]]),\"\",VLOOKUP(AdTracker[[#This Row],[Tracking Code ]],ClassifiedAds[],2,TRUE))","v":""},null,{"$f":"COUNTIF(FollowUps[Source / Key],AdTracker[[#This Row],[Tracking Code ]])","v":0},""]
[43,null,null,{"$f":"IF(ISBLANK(AdTracker[[#This Row],[Publication/Online Service\n{Select From Dropdown}]]),\"\",VLOOKUP(AdTracker[[#This Row],[Publication/Online Service\n{Select From Dropdown}]],SiteList[],3,TRUE))","v":""},null,{"$f":"IF(ISBLANK(AdTracker[[#This Row],[Tracking Code ]]),\"\",VLOOKUP(AdTracker[[#This Row],[Tracking Code ]],ClassifiedAds[],2,TRUE))","v":""},null,{"$f":"COUNTIF(FollowUps[Source / Key],AdTracker[[#This Row],[Tracking Code ]])","v":0},""]
[44,null,null,{"$f":"IF(ISBLANK(AdTracker[[#This Row],[Publication/Online Service\n{Select From Dropdown}]]),\"\",VLOOKUP(AdTracker[[#This Row],[Publication/Online Service\n{Select From Dropdown}]],SiteList[],3,TRUE))","v":""},null,{"$f":"IF(ISBLANK(AdTracker[[#This Row],[Tracking Code ]]),\"\",VLOOKUP(AdTracker[[#This Row],[Tracking Code ]],ClassifiedAds[],2,TRUE))","v":""},null,{"$f":"COUNTIF(FollowUps[Source / Key],AdTracker[[#This Row],[Tracking Code ]])","v":0},""]
[45,null,null,{"$f":"IF(ISBLANK(AdTracker[[#This Row],[Publication/Online Service\n{Select From Dropdown}]]),\"\",VLOOKUP(AdTracker[[#This Row],[Publication/Online Service\n{Select From Dropdown}]],SiteList[],3,TRUE))","v":""},null,{"$f":"IF(ISBLANK(AdTracker[[#This Row],[Tracking Code ]]),\"\",VLOOKUP(AdTracker[[#This Row],[Tracking Code ]],ClassifiedAds[],2,TRUE))","v":""},null,{"$f":"COUNTIF(FollowUps[Source / Key],AdTracker[[#This Row],[Tracking Code ]])","v":0},""]
[46,null,null,{"$f":"IF(ISBLANK(AdTracker[[#This Row],[Publication/Online Service\n{Select From Dropdown}]]),\"\",VLOOKUP(AdTracker[[#This Row],[Publication/Online Service\n{Select From Dropdown}]],SiteList[],3,TRUE))","v":""},null,{"$f":"IF(ISBLANK(AdTracker[[#This Row],[Tracking Code ]]),\"\",VLOOKUP(AdTracker[[#This Row],[Tracking Code ]],ClassifiedAds[],2,TRUE))","v":""},null,{"$f":"COUNTIF(FollowUps[Source / Key],AdTracker[[#This Row],[Tracking Code ]])","v":0},""]
[47,null,null,{"$f":"IF(ISBLANK(AdTracker[[#This Row],[Publication/Online Service\n{Select From Dropdown}]]),\"\",VLOOKUP(AdTracker[[#This Row],[Publication/Online Service\n{Select From Dropdown}]],SiteList[],3,TRUE))","v":""},null,{"$f":"IF(ISBLANK(AdTracker[[#This Row],[Tracking Code ]]),\"\",VLOOKUP(AdTracker[[#This Row],[Tracking Code ]],ClassifiedAds[],2,TRUE))","v":""},null,{"$f":"COUNTIF(FollowUps[Source / Key],AdTracker[[#This Row],[Tracking Code ]])","v":0},""]
[48,null,null,{"$f":"IF(ISBLANK(AdTracker[[#This Row],[Publication/Online Service\n{Select From Dropdown}]]),\"\",VLOOKUP(AdTracker[[#This Row],[Publication/Online Service\n{Select From Dropdown}]],SiteList[],3,TRUE))","v":""},null,{"$f":"IF(ISBLANK(AdTracker[[#This Row],[Tracking Code ]]),\"\",VLOOKUP(AdTracker[[#This Row],[Tracking Code ]],ClassifiedAds[],2,TRUE))","v":""},null,{"$f":"COUNTIF(FollowUps[Source / Key],AdTracker[[#This Row],[Tracking Code ]])","v":0},""]
[49,null,null,{"$f":"IF(ISBLANK(AdTracker[[#This Row],[Publication/Online Service\n{Select From Dropdown}]]),\"\",VLOOKUP(AdTracker[[#This Row],[Publication/Online Service\n{Select From Dropdown}]],SiteList[],3,TRUE))","v":""},null,{"$f":"IF(ISBLANK(AdTracker[[#This Row],[Tracking Code ]]),\"\",VLOOKUP(AdTracker[[#This Row],[Tracking Code ]],ClassifiedAds[],2,TRUE))","v":""},null,{"$f":"COUNTIF(FollowUps[Source / Key],AdTracker[[#This Row],[Tracking Code ]])","v":0},""]
[50,null,null,{"$f":"IF(ISBLANK(AdTracker[[#This Row],[Publication/Online Service\n{Select From Dropdown}]]),\"\",VLOOKUP(AdTracker[[#This Row],[Publication/Online Service\n{Select From Dropdown}]],SiteList[],3,TRUE))","v":""},null,{"$f":"IF(ISBLANK(AdTracker[[#This Row],[Tracking Code ]]),\"\",VLOOKUP(AdTracker[[#This Row],[Tracking Code ]],ClassifiedAds[],2,TRUE))","v":""},null,{"$f":"COUNTIF(FollowUps[Source / Key],AdTracker[[#This Row],[Tracking Code ]])","v":0},""]
[51,null,null,{"$f":"IF(ISBLANK(AdTracker[[#This Row],[Publication/Online Service\n{Select From Dropdown}]]),\"\",VLOOKUP(AdTracker[[#This Row],[Publication/Online Service\n{Select From Dropdown}]],SiteList[],3,TRUE))","v":""},null,{"$f":"IF(ISBLANK(AdTracker[[#This Row],[Tracking Code ]]),\"\",VLOOKUP(AdTracker[[#This Row],[Tracking Code ]],ClassifiedAds[],2,TRUE))","v":""},null,{"$f":"COUNTIF(FollowUps[Source / Key],AdTracker[[#This Row],[Tracking Code ]])","v":0},""]
[52,null,null,{"$f":"IF(ISBLANK(AdTracker[[#This Row],[Publication/Online Service\n{Select From Dropdown}]]),\"\",VLOOKUP(AdTracker[[#This Row],[Publication/Online Service\n{Select From Dropdown}]],SiteList[],3,TRUE))","v":""},null,{"$f":"IF(ISBLANK(AdTracker[[#This Row],[Tracking Code ]]),\"\",VLOOKUP(AdTracker[[#This Row],[Tracking Code ]],ClassifiedAds[],2,TRUE))","v":""},null,{"$f":"COUNTIF(FollowUps[Source / Key],AdTracker[[#This Row],[Tracking Code ]])","v":0},""]
[53,null,null,{"$f":"IF(ISBLANK(AdTracker[[#This Row],[Publication/Online Service\n{Select From Dropdown}]]),\"\",VLOOKUP(AdTracker[[#This Row],[Publication/Online Service\n{Select From Dropdown}]],SiteList[],3,TRUE))","v":""},null,{"$f":"IF(ISBLANK(AdTracker[[#This Row],[Tracking Code ]]),\"\",VLOOKUP(AdTracker[[#This Row],[Tracking Code ]],ClassifiedAds[],2,TRUE))","v":""},null,{"$f":"COUNTIF(FollowUps[Source / Key],AdTracker[[#This Row],[Tracking Code ]])","v":0},""]
[54,null,null,{"$f":"IF(ISBLANK(AdTracker[[#This Row],[Publication/Online Service\n{Select From Dropdown}]]),\"\",VLOOKUP(AdTracker[[#This Row],[Publication/Online Service\n{Select From Dropdown}]],SiteList[],3,TRUE))","v":""},null,{"$f":"IF(ISBLANK(AdTracker[[#This Row],[Tracking Code ]]),\"\",VLOOKUP(AdTracker[[#This Row],[Tracking Code ]],ClassifiedAds[],2,TRUE))","v":""},null,{"$f":"COUNTIF(FollowUps[Source / Key],AdTracker[[#This Row],[Tracking Code ]])","v":0},""]
[55,null,null,{"$f":"IF(ISBLANK(AdTracker[[#This Row],[Publication/Online Service\n{Select From Dropdown}]]),\"\",VLOOKUP(AdTracker[[#This Row],[Publication/Online Service\n{Select From Dropdown}]],SiteList[],3,TRUE))","v":""},null,{"$f":"IF(ISBLANK(AdTracker[[#This Row],[Tracking Code ]]),\"\",VLOOKUP(AdTracker[[#This Row],[Tracking Code ]],ClassifiedAds[],2,TRUE))","v":""},null,{"$f":"COUNTIF(FollowUps[Source / Key],AdTracker[[#This Row],[Tracking Code ]])","v":0},""]
[56,null,null,{"$f":"IF(ISBLANK(AdTracker[[#This Row],[Publication/Online Service\n{Select From Dropdown}]]),\"\",VLOOKUP(AdTracker[[#This Row],[Publication/Online Service\n{Select From Dropdown}]],SiteList[],3,TRUE))","v":""},null,{"$f":"IF(ISBLANK(AdTracker[[#This Row],[Tracking Code ]]),\"\",VLOOKUP(AdTracker[[#This Row],[Tracking Code ]],ClassifiedAds[],2,TRUE))","v":""},null,{"$f":"COUNTIF(FollowUps[Source / Key],AdTracker[[#This Row],[Tracking Code ]])","v":0},""]
[57,null,null,{"$f":"IF(ISBLANK(AdTracker[[#This Row],[Publication/Online Service\n{Select From Dropdown}]]),\"\",VLOOKUP(AdTracker[[#This Row],[Publication/Online Service\n{Select From Dropdown}]],SiteList[],3,TRUE))","v":""},null,{"$f":"IF(ISBLANK(AdTracker[[#This Row],[Tracking Code ]]),\"\",VLOOKUP(AdTracker[[#This Row],[Tracking Code ]],ClassifiedAds[],2,TRUE))","v":""},null,{"$f":"COUNTIF(FollowUps[Source / Key],AdTracker[[#This Row],[Tracking Code ]])","v":0},""]
[58,null,null,{"$f":"IF(ISBLANK(AdTracker[[#This Row],[Publication/Online Service\n{Select From Dropdown}]]),\"\",VLOOKUP(AdTracker[[#This Row],[Publication/Online Service\n{Select From Dropdown}]],SiteList[],3,TRUE))","v":""},null,{"$f":"IF(ISBLANK(AdTracker[[#This Row],[Tracking Code ]]),\"\",VLOOKUP(AdTracker[[#This Row],[Tracking Code ]],ClassifiedAds[],2,TRUE))","v":""},null,{"$f":"COUNTIF(FollowUps[Source / Key],AdTracker[[#This Row],[Tracking Code ]])","v":0},""]
[59,null,null,{"$f":"IF(ISBLANK(AdTracker[[#This Row],[Publication/Online Service\n{Select From Dropdown}]]),\"\",VLOOKUP(AdTracker[[#This Row],[Publication/Online Service\n{Select From Dropdown}]],SiteList[],3,TRUE))","v":""},null,{"$f":"IF(ISBLANK(AdTracker[[#This Row],[Tracking Code ]]),\"\",VLOOKUP(AdTracker[[#This Row],[Tracking Code ]],ClassifiedAds[],2,TRUE))","v":""},null,{"$f":"COUNTIF(FollowUps[Source / Key],AdTracker[[#This Row],[Tracking Code ]])","v":0},""]
[60,null,null,{"$f":"IF(ISBLANK(AdTracker[[#This Row],[Publication/Online Service\n{Select From Dropdown}]]),\"\",VLOOKUP(AdTracker[[#This Row],[Publication/Online Service\n{Select From Dropdown}]],SiteList[],3,TRUE))","v":""},null,{"$f":"IF(ISBLANK(AdTracker[[#This Row],[Tracking Code ]]),\"\",VLOOKUP(AdTracker[[#This Row],[Tracking Code ]],ClassifiedAds[],2,TRUE))","v":""},null,{"$f":"COUNTIF(FollowUps[Source / Key],AdTracker[[#This Row],[Tracking Code ]])","v":0},""]
[61,null,null,{"$f":"IF(ISBLANK(AdTracker[[#This Row],[Publication/Online Service\n{Select From Dropdown}]]),\"\",VLOOKUP(AdTracker[[#This Row],[Publication/Online Service\n{Select From Dropdown}]],SiteList[],3,TRUE))","v":""},null,{"$f":"IF(ISBLANK(AdTracker[[#This Row],[Tracking Code ]]),\"\",VLOOKUP(AdTracker[[#This Row],[Tracking Code ]],ClassifiedAds[],2,TRUE))","v":""},null,{"$f":"COUNTIF(FollowUps[Source / Key],AdTracker[[#This Row],[Tracking Code ]])","v":0},""]
[62,null,null,{"$f":"IF(ISBLANK(AdTracker[[#This Row],[Publication/Online Service\n{Select From Dropdown}]]),\"\",VLOOKUP(AdTracker[[#This Row],[Publication/Online Service\n{Select From Dropdown}]],SiteList[],3,TRUE))","v":""},null,{"$f":"IF(ISBLANK(AdTracker[[#This Row],[Tracking Code ]]),\"\",VLOOKUP(AdTracker[[#This Row],[Tracking Code ]],ClassifiedAds[],2,TRUE))","v":""},null,{"$f":"COUNTIF(FollowUps[Source / Key],AdTracker[[#This Row],[Tracking Code ]])","v":0},""]
[63,null,null,{"$f":"IF(ISBLANK(AdTracker[[#This Row],[Publication/Online Service\n{Select From Dropdown}]]),\"\",VLOOKUP(AdTracker[[#This Row],[Publication/Online Service\n{Select From Dropdown}]],SiteList[],3,TRUE))","v":""},null,{"$f":"IF(ISBLANK(AdTracker[[#This Row],[Tracking Code ]]),\"\",VLOOKUP(AdTracker[[#This Row],[Tracking Code ]],ClassifiedAds[],2,TRUE))","v":""},null,{"$f":"COUNTIF(FollowUps[Source / Key],AdTracker[[#This Row],[Tracking Code ]])","v":0},""]
[64,null,null,{"$f":"IF(ISBLANK(AdTracker[[#This Row],[Publication/Online Service\n{Select From Dropdown}]]),\"\",VLOOKUP(AdTracker[[#This Row],[Publication/Online Service\n{Select From Dropdown}]],SiteList[],3,TRUE))","v":""},null,{"$f":"IF(ISBLANK(AdTracker[[#This Row],[Tracking Code ]]),\"\",VLOOKUP(AdTracker[[#This Row],[Tracking Code ]],ClassifiedAds[],2,TRUE))","v":""},null,{"$f":"COUNTIF(FollowUps[Source / Key],AdTracker[[#This Row],[Tracking Code ]])","v":0},""]
[65,null,null,{"$f":"IF(ISBLANK(AdTracker[[#This Row],[Publication/Online Service\n{Select From Dropdown}]]),\"\",VLOOKUP(AdTracker[[#This Row],[Publication/Online Service\n{Select From Dropdown}]],SiteList[],3,TRUE))","v":""},null,{"$f":"IF(ISBLANK(AdTracker[[#This Row],[Tracking Code ]]),\"\",VLOOKUP(AdTracker[[#This Row],[Tracking Code ]],ClassifiedAds[],2,TRUE))","v":""},null,{"$f":"COUNTIF(FollowUps[Source / Key],AdTracker[[#This Row],[Tracking Code ]])","v":0},{"$f":"IF(H69=0,\"\",G69/H69)","v":""}]
[66,null,null,{"$f":"IF(ISBLANK(AdTracker[[#This Row],[Publication/Online Service\n{Select From Dropdown}]]),\"\",VLOOKUP(AdTracker[[#This Row],[Publication/Online Service\n{Select From Dropdown}]],SiteList[],3,TRUE))","v":""},null,{"$f":"IF(ISBLANK(AdTracker[[#This Row],[Tracking Code ]]),\"\",VLOOKUP(AdTracker[[#This Row],[Tracking Code ]],ClassifiedAds[],2,TRUE))","v":""},null,{"$f":"COUNTIF(FollowUps[Source / Key],AdTracker[[#This Row],[Tracking Code ]])","v":0},""]
[{"$f":"A70+1","v":67},null,null,{"$f":"IF(ISBLANK(AdTracker[[#This Row],[Publication/Online Service\n{Select From Dropdown}]]),\"\",VLOOKUP(AdTracker[[#This Row],[Publication/Online Service\n{Select From Dropdown}]],SiteList[],3,TRUE))","v":""},null,{"$f":"IF(ISBLANK(AdTracker[[#This Row],[Tracking Code ]]),\"\",VLOOKUP(AdTracker[[#This Row],[Tracking Code ]],ClassifiedAds[],2,TRUE))","v":""},null,{"$f":"COUNTIF(FollowUps[Source / Key],AdTracker[[#This Row],[Tracking Code ]])","v":0},""]
[68,null,null,{"$f":"IF(ISBLANK(AdTracker[[#This Row],[Publication/Online Service\n{Select From Dropdown}]]),\"\",VLOOKUP(AdTracker[[#This Row],[Publication/Online Service\n{Select From Dropdown}]],SiteList[],3,TRUE))","v":""},null,{"$f":"IF(ISBLANK(AdTracker[[#This Row],[Tracking Code ]]),\"\",VLOOKUP(AdTracker[[#This Row],[Tracking Code ]],ClassifiedAds[],2,TRUE))","v":""},null,{"$f":"COUNTIF(FollowUps[Source / Key],AdTracker[[#This Row],[Tracking Code ]])","v":0},""]
[69,null,null,{"$f":"IF(ISBLANK(AdTracker[[#This Row],[Publication/Online Service\n{Select From Dropdown}]]),\"\",VLOOKUP(AdTracker[[#This Row],[Publication/Online Service\n{Select From Dropdown}]],SiteList[],3,TRUE))","v":""},null,{"$f":"IF(ISBLANK(AdTracker[[#This Row],[Tracking Code ]]),\"\",VLOOKUP(AdTracker[[#This Row],[Tracking Code ]],ClassifiedAds[],2,TRUE))","v":""},null,{"$f":"COUNTIF(FollowUps[Source / Key],AdTracker[[#This Row],[Tracking Code ]])","v":0},""]
[70,null,null,{"$f":"IF(ISBLANK(AdTracker[[#This Row],[Publication/Online Service\n{Select From Dropdown}]]),\"\",VLOOKUP(AdTracker[[#This Row],[Publication/Online Service\n{Select From Dropdown}]],SiteList[],3,TRUE))","v":""},null,{"$f":"IF(ISBLANK(AdTracker[[#This Row],[Tracking Code ]]),\"\",VLOOKUP(AdTracker[[#This Row],[Tracking Code ]],ClassifiedAds[],2,TRUE))","v":""},null,{"$f":"COUNTIF(FollowUps[Source / Key],AdTracker[[#This Row],[Tracking Code ]])","v":0},""]
[71,null,null,{"$f":"IF(ISBLANK(AdTracker[[#This Row],[Publication/Online Service\n{Select From Dropdown}]]),\"\",VLOOKUP(AdTracker[[#This Row],[Publication/Online Service\n{Select From Dropdown}]],SiteList[],3,TRUE))","v":""},null,{"$f":"IF(ISBLANK(AdTracker[[#This Row],[Tracking Code ]]),\"\",VLOOKUP(AdTracker[[#This Row],[Tracking Code ]],ClassifiedAds[],2,TRUE))","v":""},null,{"$f":"COUNTIF(FollowUps[Source / Key],AdTracker[[#This Row],[Tracking Code ]])","v":0},""]
[72,null,null,{"$f":"IF(ISBLANK(AdTracker[[#This Row],[Publication/Online Service\n{Select From Dropdown}]]),\"\",VLOOKUP(AdTracker[[#This Row],[Publication/Online Service\n{Select From Dropdown}]],SiteList[],3,TRUE))","v":""},null,{"$f":"IF(ISBLANK(AdTracker[[#This Row],[Tracking Code ]]),\"\",VLOOKUP(AdTracker[[#This Row],[Tracking Code ]],ClassifiedAds[],2,TRUE))","v":""},null,{"$f":"COUNTIF(FollowUps[Source / Key],AdTracker[[#This Row],[Tracking Code ]])","v":0},""]
[73,null,null,{"$f":"IF(ISBLANK(AdTracker[[#This Row],[Publication/Online Service\n{Select From Dropdown}]]),\"\",VLOOKUP(AdTracker[[#This Row],[Publication/Online Service\n{Select From Dropdown}]],SiteList[],3,TRUE))","v":""},null,{"$f":"IF(ISBLANK(AdTracker[[#This Row],[Tracking Code ]]),\"\",VLOOKUP(AdTracker[[#This Row],[Tracking Code ]],ClassifiedAds[],2,TRUE))","v":""},null,{"$f":"COUNTIF(FollowUps[Source / Key],AdTracker[[#This Row],[Tracking Code ]])","v":0},""]
[74,null,null,{"$f":"IF(ISBLANK(AdTracker[[#This Row],[Publication/Online Service\n{Select From Dropdown}]]),\"\",VLOOKUP(AdTracker[[#This Row],[Publication/Online Service\n{Select From Dropdown}]],SiteList[],3,TRUE))","v":""},null,{"$f":"IF(ISBLANK(AdTracker[[#This Row],[Tracking Code ]]),\"\",VLOOKUP(AdTracker[[#This Row],[Tracking Code ]],ClassifiedAds[],2,TRUE))","v":""},null,{"$f":"COUNTIF(FollowUps[Source / Key],AdTracker[[#This Row],[Tracking Code ]])","v":0},""]
[75,null,null,{"$f":"IF(ISBLANK(AdTracker[[#This Row],[Publication/Online Service\n{Select From Dropdown}]]),\"\",VLOOKUP(AdTracker[[#This Row],[Publication/Online Service\n{Select From Dropdown}]],SiteList[],3,TRUE))","v":""},null,{"$f":"IF(ISBLANK(AdTracker[[#This Row],[Tracking Code ]]),\"\",VLOOKUP(AdTracker[[#This Row],[Tracking Code ]],ClassifiedAds[],2,TRUE))","v":""},null,{"$f":"COUNTIF(FollowUps[Source / Key],AdTracker[[#This Row],[Tracking Code ]])","v":0},""]
[76,null,null,{"$f":"IF(ISBLANK(AdTracker[[#This Row],[Publication/Online Service\n{Select From Dropdown}]]),\"\",VLOOKUP(AdTracker[[#This Row],[Publication/Online Service\n{Select From Dropdown}]],SiteList[],3,TRUE))","v":""},null,{"$f":"IF(ISBLANK(AdTracker[[#This Row],[Tracking Code ]]),\"\",VLOOKUP(AdTracker[[#This Row],[Tracking Code ]],ClassifiedAds[],2,TRUE))","v":""},null,{"$f":"COUNTIF(FollowUps[Source / Key],AdTracker[[#This Row],[Tracking Code ]])","v":0},""]
[77,null,null,{"$f":"IF(ISBLANK(AdTracker[[#This Row],[Publication/Online Service\n{Select From Dropdown}]]),\"\",VLOOKUP(AdTracker[[#This Row],[Publication/Online Service\n{Select From Dropdown}]],SiteList[],3,TRUE))","v":""},null,{"$f":"IF(ISBLANK(AdTracker[[#This Row],[Tracking Code ]]),\"\",VLOOKUP(AdTracker[[#This Row],[Tracking Code ]],ClassifiedAds[],2,TRUE))","v":""},null,{"$f":"COUNTIF(FollowUps[Source / Key],AdTracker[[#This Row],[Tracking Code ]])","v":0},""]
[78,null,null,{"$f":"IF(ISBLANK(AdTracker[[#This Row],[Publication/Online Service\n{Select From Dropdown}]]),\"\",VLOOKUP(AdTracker[[#This Row],[Publication/Online Service\n{Select From Dropdown}]],SiteList[],3,TRUE))","v":""},null,{"$f":"IF(ISBLANK(AdTracker[[#This Row],[Tracking Code ]]),\"\",VLOOKUP(AdTracker[[#This Row],[Tracking Code ]],ClassifiedAds[],2,TRUE))","v":""},null,{"$f":"COUNTIF(FollowUps[Source / Key],AdTracker[[#This Row],[Tracking Code ]])","v":0},""]
[79,null,null,{"$f":"IF(ISBLANK(AdTracker[[#This Row],[Publication/Online Service\n{Select From Dropdown}]]),\"\",VLOOKUP(AdTracker[[#This Row],[Publication/Online Service\n{Select From Dropdown}]],SiteList[],3,TRUE))","v":""},null,{"$f":"IF(ISBLANK(AdTracker[[#This Row],[Tracking Code ]]),\"\",VLOOKUP(AdTracker[[#This Row],[Tracking Code ]],ClassifiedAds[],2,TRUE))","v":""},null,{"$f":"COUNTIF(FollowUps[Source / Key],AdTracker[[#This Row],[Tracking Code ]])","v":0},""]
[80,null,null,{"$f":"IF(ISBLANK(AdTracker[[#This Row],[Publication/Online Service\n{Select From Dropdown}]]),\"\",VLOOKUP(AdTracker[[#This Row],[Publication/Online Service\n{Select From Dropdown}]],SiteList[],3,TRUE))","v":""},null,{"$f":"IF(ISBLANK(AdTracker[[#This Row],[Tracking Code ]]),\"\",VLOOKUP(AdTracker[[#This Row],[Tracking Code ]],ClassifiedAds[],2,TRUE))","v":""},null,{"$f":"COUNTIF(FollowUps[Source / Key],AdTracker[[#This Row],[Tracking Code ]])","v":0},""]
[81,null,null,{"$f":"IF(ISBLANK(AdTracker[[#This Row],[Publication/Online Service\n{Select From Dropdown}]]),\"\",VLOOKUP(AdTracker[[#This Row],[Publication/Online Service\n{Select From Dropdown}]],SiteList[],3,TRUE))","v":""},null,{"$f":"IF(ISBLANK(AdTracker[[#This Row],[Tracking Code ]]),\"\",VLOOKUP(AdTracker[[#This Row],[Tracking Code ]],ClassifiedAds[],2,TRUE))","v":""},null,{"$f":"COUNTIF(FollowUps[Source / Key],AdTracker[[#This Row],[Tracking Code ]])","v":0},""]
[82,null,null,{"$f":"IF(ISBLANK(AdTracker[[#This Row],[Publication/Online Service\n{Select From Dropdown}]]),\"\",VLOOKUP(AdTracker[[#This Row],[Publication/Online Service\n{Select From Dropdown}]],SiteList[],3,TRUE))","v":""},null,{"$f":"IF(ISBLANK(AdTracker[[#This Row],[Tracking Code ]]),\"\",VLOOKUP(AdTracker[[#This Row],[Tracking Code ]],ClassifiedAds[],2,TRUE))","v":""},null,{"$f":"COUNTIF(FollowUps[Source / Key],AdTracker[[#This Row],[Tracking Code ]])","v":0},""]
[83,null,null,{"$f":"IF(ISBLANK(AdTracker[[#This Row],[Publication/Online Service\n{Select From Dropdown}]]),\"\",VLOOKUP(AdTracker[[#This Row],[Publication/Online Service\n{Select From Dropdown}]],SiteList[],3,TRUE))","v":""},null,{"$f":"IF(ISBLANK(AdTracker[[#This Row],[Tracking Code ]]),\"\",VLOOKUP(AdTracker[[#This Row],[Tracking Code ]],ClassifiedAds[],2,TRUE))","v":""},null,{"$f":"COUNTIF(FollowUps[Source / Key],AdTracker[[#This Row],[Tracking Code ]])","v":0},""]
[84,null,null,{"$f":"IF(ISBLANK(AdTracker[[#This Row],[Publication/Online Service\n{Select From Dropdown}]]),\"\",VLOOKUP(AdTracker[[#This Row],[Publication/Online Service\n{Select From Dropdown}]],SiteList[],3,TRUE))","v":""},null,{"$f":"IF(ISBLANK(AdTracker[[#This Row],[Tracking Code ]]),\"\",VLOOKUP(AdTracker[[#This Row],[Tracking Code ]],ClassifiedAds[],2,TRUE))","v":""},null,{"$f":"COUNTIF(FollowUps[Source / Key],AdTracker[[#This Row],[Tracking Code ]])","v":0},""]
[85,null,null,{"$f":"IF(ISBLANK(AdTracker[[#This Row],[Publication/Online Service\n{Select From Dropdown}]]),\"\",VLOOKUP(AdTracker[[#This Row],[Publication/Online Service\n{Select From Dropdown}]],SiteList[],3,TRUE))","v":""},null,{"$f":"IF(ISBLANK(AdTracker[[#This Row],[Tracking Code ]]),\"\",VLOOKUP(AdTracker[[#This Row],[Tracking Code ]],ClassifiedAds[],2,TRUE))","v":""},null,{"$f":"COUNTIF(FollowUps[Source / Key],AdTracker[[#This Row],[Tracking Code ]])","v":0},""]
[86,null,null,{"$f":"IF(ISBLANK(AdTracker[[#This Row],[Publication/Online Service\n{Select From Dropdown}]]),\"\",VLOOKUP(AdTracker[[#This Row],[Publication/Online Service\n{Select From Dropdown}]],SiteList[],3,TRUE))","v":""},null,{"$f":"IF(ISBLANK(AdTracker[[#This Row],[Tracking Code ]]),\"\",VLOOKUP(AdTracker[[#This Row],[Tracking Code ]],ClassifiedAds[],2,TRUE))","v":""},null,{"$f":"COUNTIF(FollowUps[Source / Key],AdTracker[[#This Row],[Tracking Code ]])","v":0},""]
[87,null,null,{"$f":"IF(ISBLANK(AdTracker[[#This Row],[Publication/Online Service\n{Select From Dropdown}]]),\"\",VLOOKUP(AdTracker[[#This Row],[Publication/Online Service\n{Select From Dropdown}]],SiteList[],3,TRUE))","v":""},null,{"$f":"IF(ISBLANK(AdTracker[[#This Row],[Tracking Code ]]),\"\",VLOOKUP(AdTracker[[#This Row],[Tracking Code ]],ClassifiedAds[],2,TRUE))","v":""},null,{"$f":"COUNTIF(FollowUps[Source / Key],AdTracker[[#This Row],[Tracking Code ]])","v":0},""]
[88,null,null,{"$f":"IF(ISBLANK(AdTracker[[#This Row],[Publication/Online Service\n{Select From Dropdown}]]),\"\",VLOOKUP(AdTracker[[#This Row],[Publication/Online Service\n{Select From Dropdown}]],SiteList[],3,TRUE))","v":""},null,{"$f":"IF(ISBLANK(AdTracker[[#This Row],[Tracking Code ]]),\"\",VLOOKUP(AdTracker[[#This Row],[Tracking Code ]],ClassifiedAds[],2,TRUE))","v":""},null,{"$f":"COUNTIF(FollowUps[Source / Key],AdTracker[[#This Row],[Tracking Code ]])","v":0},""]
[89,null,null,{"$f":"IF(ISBLANK(AdTracker[[#This Row],[Publication/Online Service\n{Select From Dropdown}]]),\"\",VLOOKUP(AdTracker[[#This Row],[Publication/Online Service\n{Select From Dropdown}]],SiteList[],3,TRUE))","v":""},null,{"$f":"IF(ISBLANK(AdTracker[[#This Row],[Tracking Code ]]),\"\",VLOOKUP(AdTracker[[#This Row],[Tracking Code ]],ClassifiedAds[],2,TRUE))","v":""},null,{"$f":"COUNTIF(FollowUps[Source / Key],AdTracker[[#This Row],[Tracking Code ]])","v":0},""]
[90,null,null,{"$f":"IF(ISBLANK(AdTracker[[#This Row],[Publication/Online Service\n{Select From Dropdown}]]),\"\",VLOOKUP(AdTracker[[#This Row],[Publication/Online Service\n{Select From Dropdown}]],SiteList[],3,TRUE))","v":""},null,{"$f":"IF(ISBLANK(AdTracker[[#This Row],[Tracking Code ]]),\"\",VLOOKUP(AdTracker[[#This Row],[Tracking Code ]],ClassifiedAds[],2,TRUE))","v":""},null,{"$f":"COUNTIF(FollowUps[Source / Key],AdTracker[[#This Row],[Tracking Code ]])","v":0},""]
[91,null,null,{"$f":"IF(ISBLANK(AdTracker[[#This Row],[Publication/Online Service\n{Select From Dropdown}]]),\"\",VLOOKUP(AdTracker[[#This Row],[Publication/Online Service\n{Select From Dropdown}]],SiteList[],3,TRUE))","v":""},null,{"$f":"IF(ISBLANK(AdTracker[[#This Row],[Tracking Code ]]),\"\",VLOOKUP(AdTracker[[#This Row],[Tracking Code ]],ClassifiedAds[],2,TRUE))","v":""},null,{"$f":"COUNTIF(FollowUps[Source / Key],AdTracker[[#This Row],[Tracking Code ]])","v":0},""]
[92,null,null,{"$f":"IF(ISBLANK(AdTracker[[#This Row],[Publication/Online Service\n{Select From Dropdown}]]),\"\",VLOOKUP(AdTracker[[#This Row],[Publication/Online Service\n{Select From Dropdown}]],SiteList[],3,TRUE))","v":""},null,{"$f":"IF(ISBLANK(AdTracker[[#This Row],[Tracking Code ]]),\"\",VLOOKUP(AdTracker[[#This Row],[Tracking Code ]],ClassifiedAds[],2,TRUE))","v":""},null,{"$f":"COUNTIF(FollowUps[Source / Key],AdTracker[[#This Row],[Tracking Code ]])","v":0},""]
[93,null,null,{"$f":"IF(ISBLANK(AdTracker[[#This Row],[Publication/Online Service\n{Select From Dropdown}]]),\"\",VLOOKUP(AdTracker[[#This Row],[Publication/Online Service\n{Select From Dropdown}]],SiteList[],3,TRUE))","v":""},null,{"$f":"IF(ISBLANK(AdTracker[[#This Row],[Tracking Code ]]),\"\",VLOOKUP(AdTracker[[#This Row],[Tracking Code ]],ClassifiedAds[],2,TRUE))","v":""},null,{"$f":"COUNTIF(FollowUps[Source / Key],AdTracker[[#This Row],[Tracking Code ]])","v":0},""]
[94,null,null,{"$f":"IF(ISBLANK(AdTracker[[#This Row],[Publication/Online Service\n{Select From Dropdown}]]),\"\",VLOOKUP(AdTracker[[#This Row],[Publication/Online Service\n{Select From Dropdown}]],SiteList[],3,TRUE))","v":""},null,{"$f":"IF(ISBLANK(AdTracker[[#This Row],[Tracking Code ]]),\"\",VLOOKUP(AdTracker[[#This Row],[Tracking Code ]],ClassifiedAds[],2,TRUE))","v":""},null,{"$f":"COUNTIF(FollowUps[Source / Key],AdTracker[[#This Row],[Tracking Code ]])","v":0},""]
[95,null,null,{"$f":"IF(ISBLANK(AdTracker[[#This Row],[Publication/Online Service\n{Select From Dropdown}]]),\"\",VLOOKUP(AdTracker[[#This Row],[Publication/Online Service\n{Select From Dropdown}]],SiteList[],3,TRUE))","v":""},null,{"$f":"IF(ISBLANK(AdTracker[[#This Row],[Tracking Code ]]),\"\",VLOOKUP(AdTracker[[#This Row],[Tracking Code ]],ClassifiedAds[],2,TRUE))","v":""},null,{"$f":"COUNTIF(FollowUps[Source / Key],AdTracker[[#This Row],[Tracking Code ]])","v":0},""]
[96,null,null,{"$f":"IF(ISBLANK(AdTracker[[#This Row],[Publication/Online Service\n{Select From Dropdown}]]),\"\",VLOOKUP(AdTracker[[#This Row],[Publication/Online Service\n{Select From Dropdown}]],SiteList[],3,TRUE))","v":""},null,{"$f":"IF(ISBLANK(AdTracker[[#This Row],[Tracking Code ]]),\"\",VLOOKUP(AdTracker[[#This Row],[Tracking Code ]],ClassifiedAds[],2,TRUE))","v":""},null,{"$f":"COUNTIF(FollowUps[Source / Key],AdTracker[[#This Row],[Tracking Code ]])","v":0},""]
[97,null,null,{"$f":"IF(ISBLANK(AdTracker[[#This Row],[Publication/Online Service\n{Select From Dropdown}]]),\"\",VLOOKUP(AdTracker[[#This Row],[Publication/Online Service\n{Select From Dropdown}]],SiteList[],3,TRUE))","v":""},null,{"$f":"IF(ISBLANK(AdTracker[[#This Row],[Tracking Code ]]),\"\",VLOOKUP(AdTracker[[#This Row],[Tracking Code ]],ClassifiedAds[],2,TRUE))","v":""},null,{"$f":"COUNTIF(FollowUps[Source / Key],AdTracker[[#This Row],[Tracking Code ]])","v":0},{"$f":"IF(H101=0,\"\",G101/H101)","v":""}]
[98,null,null,{"$f":"IF(ISBLANK(AdTracker[[#This Row],[Publication/Online Service\n{Select From Dropdown}]]),\"\",VLOOKUP(AdTracker[[#This Row],[Publication/Online Service\n{Select From Dropdown}]],SiteList[],3,TRUE))","v":""},null,{"$f":"IF(ISBLANK(AdTracker[[#This Row],[Tracking Code ]]),\"\",VLOOKUP(AdTracker[[#This Row],[Tracking Code ]],ClassifiedAds[],2,TRUE))","v":""},null,{"$f":"COUNTIF(FollowUps[Source / Key],AdTracker[[#This Row],[Tracking Code ]])","v":0},{"$f":"IF(H102=0,\"\",G102/H102)","v":""}]
[99,null,null,{"$f":"IF(ISBLANK(AdTracker[[#This Row],[Publication/Online Service\n{Select From Dropdown}]]),\"\",VLOOKUP(AdTracker[[#This Row],[Publication/Online Service\n{Select From Dropdown}]],SiteList[],3,TRUE))","v":""},null,{"$f":"IF(ISBLANK(AdTracker[[#This Row],[Tracking Code ]]),\"\",VLOOKUP(AdTracker[[#This Row],[Tracking Code ]],ClassifiedAds[],2,TRUE))","v":""},null,{"$f":"COUNTIF(FollowUps[Source / Key],AdTracker[[#This Row],[Tracking Code ]])","v":0},""]
[100,null,null,{"$f":"IF(ISBLANK(AdTracker[[#This Row],[Publication/Online Service\n{Select From Dropdown}]]),\"\",VLOOKUP(AdTracker[[#This Row],[Publication/Online Service\n{Select From Dropdown}]],SiteList[],3,TRUE))","v":""},null,{"$f":"IF(ISBLANK(AdTracker[[#This Row],[Tracking Code ]]),\"\",VLOOKUP(AdTracker[[#This Row],[Tracking Code ]],ClassifiedAds[],2,TRUE))","v":""},null,{"$f":"COUNTIF(FollowUps[Source / Key],AdTracker[[#This Row],[Tracking Code ]])","v":0},""]
["Total",null,null,null,null,null,{"$f":"SUBTOTAL(109,AdTracker[Ad Cost])","v":0},{"$f":"SUBTOTAL(109,AdTracker[Total Leads])","v":1}]

{"sheet":"Follow-up Tracker","index":13,"n_rows":254,"n_cols":14,"rows_kept":254,"cut":false,"hidden":false,"merged":[]}
["Follow-up Tracker"]
["Worksheet In Protected Mode"]
[]
["#","Date","Name","Address","City","State","Zip","Country","Phone","Email","Source / Key","Result","FU Type","Notes"]
[1,"2023-07-15","John Smith","1234 Main street","Anytown","CA",90012,"USA",null,null,"A1","Sale","Phone"]
[2]
[3]
[4]
[5]
[6]
[7]
[8]
[9]
[10]
[11]
[12]
[13]
[14]
[15]
[16]
[17]
[18]
[19]
[20]
[21]
[22]
[23]
[24]
[25]
[26]
[27]
[28]
[29]
[30]
[31]
[32]
[33]
[34]
[35]
[36]
[37]
[38]
[39]
[40]
[41]
[42]
[43]
[44]
[45]
[46]
[47]
[48]
[49]
[50]
[51]
[52]
[53]
[54]
[55]
[56]
[57]
[58]
[59]
[60]
[61]
[62]
[63]
[64]
[65]
[66]
[67]
[68]
[69]
[70]
[71]
[72]
[73]
[74]
[75]
[76]
[77]
[78]
[79]
[80]
[81]
[82]
[83]
[84]
[85]
[86]
[87]
[88]
[89]
[90]
[91]
[92]
[93]
[94]
[95]
[96]
[97]
[98]
[99]
[100]
[101]
[102]
[103]
[104]
[105]
[106]
[107]
[108]
[109]
[110]
[111]
[112]
[113]
[114]
[115]
[116]
[117]
[118]
[119]
[120]
[121]
[122]
[123]
[124]
[125]
[126]
[127]
[128]
[129]
[130]
[131]
[132]
[133]
[134]
[135]
[136]
[137]
[138]
[139]
[140]
[141]
[142]
[143]
[144]
[145]
[146]
[147]
[148]
[149]
[150]
[151]
[152]
[153]
[154]
[155]
[156]
[157]
[158]
[159]
[160]
[161]
[162]
[163]
[164]
[165]
[166]
[167]
[168]
[169]
[170]
[171]
[172]
[173]
[174]
[175]
[176]
[177]
[178]
[179]
[180]
[181]
[182]
[183]
[184]
[185]
[186]
[187]
[188]
[189]
[190]
[191]
[192]
[193]
[194]
[195]
[196]
[197]
[198]
[199]
[200]
[201]
[202]
[203]
[204]
[205]
[206]
[207]
[208]
[209]
[210]
[211]
[212]
[213]
[214]
[215]
[216]
[217]
[218]
[219]
[220]
[221]
[222]
[223]
[224]
[225]
[226]
[227]
[228]
[229]
[230]
[231]
[232]
[233]
[234]
[235]
[236]
[237]
[238]
[239]
[240]
[241]
[242]
[243]
[244]
[245]
[246]
[247]
[248]
[249]
[250]

{"sheet":"Site List","index":14,"n_rows":243,"n_cols":11,"rows_kept":243,"cut":false,"hidden":false,"merged":[]}
["Site List"]
["Worksheet In Protected Mode"]
[]
["Site","Address","Site Type","Coverage Area","Items Advertised","Posted To Site","Account Setup","Login Name","Login Password","Notes","Site Status"]
["1st Executive BoardRoom Free Classifieds","http://1stexecutiveboardroom.net/cgi-bin/class/classifieds.cgi","Selling","Worldwide","Wide-Range","No","No",null,null,null,"Active"]
["Abell Auctions","https://www.abell.com/","Auction","Worldwide","Wide-Range","No","No",null,null,null,"Active"]
["ACV Auction","https://www.acvauctions.com/","Auction","Worldwide","Wide-Range","No","No",null,null,null,"Active"]
["Ad Post","https://www.adpost.com/","Selling","Worldwide","Wide-Range","No","No",null,null,null,"Active"]
["AdLandPro","http://www.adlandpro.com/","Selling","Worldwide","Wide-Range","No","No",null,null,null,"Active"]
["Ads and Classifieds","http://adsandclassifieds.com/","Selling","Worldwide","Wide-Range","No","No",null,null,null,"Active"]
["Ads2Book.com","http://www.ads2book.com/","Selling","Worldwide","Wide-Range","No","No",null,null,null,"Active"]
["Adsand Deals","http://www.adsanddeals.com/","Selling","Worldwide","Wide-Range","No","No",null,null,null,"Active"]
["Adsglobe.com","http://www.adsglobe.com/","Selling","Worldwide","Wide-Range","No","No"]
["Adsnity","http://adsnity.com/","Selling","USA","Wide-Range","No","No",null,null,null,"Active"]
["Adszees","http://www.adszees.com/","Selling","Worldwide","Wide-Range","No","No"]
["ADVisTO.com","http://en.advisto.com","Selling","Worldwide","Wide-Range","No","No",null,null,null,"Active"]
["AJC Classifieds","http://www.ajcclassifieds.com/","Selling","Worldwide","Wide-Range","No","No",null,null,null,"Active"]
["Alibaba.com","http://www.alibaba.com/","Selling","Worldwide","Wide-Range","No","No",null,null,null,"Active"]
["All Classifieds","http://www.allclassifieds.com.au/","Selling","Worldwide","Wide-Range","No","No",null,null,null,"Active"]
["Allnewspapers.com","http://www.allnewspapers.com/classifieds/","Selling","Worldwide","Wide-Range","No","No",null,null,null,"Active"]
["Altoona","http://www.altoona.com/classifieds/","Selling","Worldwide","Wide-Range","No","No",null,null,null,"Active"]
["Amazon","http://www.amazon.com/","Selling","Worldwide","Wide-Range","No","No",null,null,null,"Active"]
["Amcho Classifieds Ads","http://www.amcho.com/add_ad_0.htm","Selling","Worldwide","Wide-Range","No","No",null,null,null,"Active"]
["American Listed","http://www.americanlisted.com/","Selling","Worldwide","Wide-Range","No","No",null,null,null,"Active"]
["Angels Ad pbb","http://www.angels-ad-pbb.com/","Selling","Worldwide","Wide-Range","No","No",null,null,null,"Active"]
["Artsy","https://www.artsy.net/","Auction","Worldwide","Wide-Range","No","No",null,null,null,"Active"]
["Asbury Park Press","http://www.app.com/","Newspaper","Neptune, NJ","Wide-Range","No","No",null,null,null,"Active"]
["Ask","http://www.ask.com/","Search Engine","Worldwide","Wide-Range","No","No",null,null,null,"Active"]
["ATD Advertising Solutions","http://www.classified2000.net/","Selling","Worldwide","Wide-Range","No","No"]
["AUAdpost","http://www.auadpost.com/","Selling","Worldwide","Wide-Range","No","No",null,null,null,"Active"]
["Auction Fire","http://auctionfire.com/","Auction","Worldwide","Wide-Range","No","No",null,null,null,"Active"]
["Auction Guide","http://www.auctionguide.com/","Auction","Worldwide","Wide-Range","No","No",null,null,null,"Active"]
["Auction Stealer","http://www.auctionstealer.com/home.cfm","Auction","Worldwide","Wide-Range","No","No",null,null,null,"Active"]
["Auction Weiser","http://www.auctionweiser.com/","Auction","Worldwide","Wide-Range","No","No",null,null,null,"Active"]
["Auction Zip","http://www.auctionzip.com/","Auction","Worldwide","Wide-Range","No","No"]
["Auction.com","https://www.auction.com/","Auction","Worldwide","Wide-Range","No","No",null,null,null,"Active"]
["Auctria","https://www.auctria.com/","Auction","Worldwide","Wide-Range","No","No",null,null,null,"Active"]
["AUFreeAds.com","http://www.aufreeads.com/post/post-free-ads.php","Selling","Worldwide","Wide-Range","No","No",null,null,null,"Active"]
["Aussie Traders Free Classifieds","http://www.aussietraders.com.au/","Selling","Worldwide","Wide-Range","No","No",null,null,null,"Active"]
["Austin American-Statesman","http://www.statesman.com/","Newspaper","Austin, TX","Wide-Range","No","No",null,null,null,"Active"]
["Available","http://www.available.com/","Search Engine","Worldwide","Wide-Range","No","No",null,null,null,"Active"]
["Az Best Classified","http://www.azbestclassified.com/","Selling","Worldwide","Wide-Range","No","No",null,null,null,"Active"]
["A-Z Collectible Classifieds","http://www.collectibleclassifieds.com/","Selling","Worldwide","Wide-Range","No","No",null,null,null,"Active"]
["AZ India","http://www.azindia.com/","Selling","India","Wide-Range","No","No",null,null,null,"Active"]
["BCT.adpost.com","http://bct.adpost.com/us/","Selling","USA","Wide-Range","No","No",null,null,null,"Active"]
["BerkshireAds","http://www.berkshireads.com/","Selling","Worldwide","Wide-Range","No","No"]
["Best Free Classifieds","http://www.bestfreeclassifieds.com/","Selling","Worldwide","Wide-Range","No","No"]
["Best Local Northeast Ohio Classifieds","http://www.cleveland.com/","Selling","Cleveland, OH","Wide-Range","No","No"]
["Bidding For Good","https://www.biddingforgood.com","Auction","Worldwide","Wide-Range","No","No",null,null,null,"Active"]
["Bing","http://www.bing.com/","Search Engine","Worldwide","Wide-Range","No","No"]
["BizCaf Free Canada Classfieds","http://www.bizcaf.ca/","Selling","Canada","Wide-Range","No","No"]
["Blog Search Engine","http://www.blogsearchengine.com/","Search Engine","Worldwide","Wide-Range","No","No"]
["BND","http://www.bnd.com/","Selling","Worldwide","Wide-Range","No","No"]
["BoardReader ","http://boardreader.com/","Search Engine","Worldwide","Wide-Range","No","No",null,null,null,"Active"]
["Bonanza","https://www.bonanza.com/","Selling","Worldwide","Wide-Range","No","No",null,null,null,"Active"]
["bonanza.com","http://www.bonanza.com/","Selling","Worldwide","Wide-Range","No","No"]
["Boston Classifieds","http://listingsboston.com/","Selling","Boston, MA","Wide-Range","No","No",null,null,null,"Active"]
["Buck Dodgers Classified","http://www.buckdodgers.com/","Selling","Worldwide","Wide-Range","No","No"]
["Buckeyeads.com","http://www.buckeyeads.com/","Selling","Ohio","Wide-Range","No","No"]
["Bupus Free Classifieds","http://www.bupus.com/","Selling","Worldwide","Wide-Range","No","No"]
["Buy $elland Trade","http://buysellandtrade.com/","Selling","USA/Canada","Wide-Range","No","No",null,null,null,"Active"]
["Buy Now Free Classifieds","http://buynow-us.com/","Selling","Worldwide","Wide-Range","No","No",null,null,null,"Active"]
["Buy Sell Dial","http://www.buyselldial.com/","Selling","Worldwide","Wide-Range","No","No"]
["BuySellCommunity","http://www.buysellcommunity.com/","Selling","Atlanta, GA","Wide-Range","No","No"]
["CABL","http://www.cabl.com/","Selling","Worldwide","Wide-Range","No","No"]
["Camping Canada","http://www.camping-canada.com/","Selling","Canada","Camping","No","No"]
["Canada Free Classified Ads","http://www.freeadsincanada.com/","Selling","Canada","Wide-Range","No","No",null,null,null,"Active"]
["Canada Free Classifieds","http://www.adoodca.com/","Selling","Canada","Wide-Range","No","No",null,null,null,"Active"]
["Canadian Classifieds","http://www.cdncc.com/","Selling","Canada","Wide-Range","No","No"]
["CANetAds.com","http://www.canetads.com/","Selling","Canada","Wide-Range","No","No"]
["Castanet","http://classifieds.castanet.net/","Selling","Worldwide","Wide-Range","No","No",null,null,null,"Active"]
["Cathay List Free Classifieds","https://www.cathaylist.com/","Selling","Worldwide","Wide-Range","No","No",null,null,null,"Active"]
["Chairish","https://www.chairish.com/","Selling","Worldwide","Wide-Range","No","No",null,null,null,"Active"]
["Charity Auctions Today","https://www.charityauctionstoday.com/","Auction","Worldwide","Wide-Range","No","No",null,null,null,"Active"]
["Charitybuzz","https://www.charitybuzz.com/","Auction","Worldwide","Wide-Range","No","No",null,null,null,"Active"]
["Chicago Reader ","http://www.chicagoreader.com/","Newspaper","Chicago","Wide-Range","No","No",null,null,null,"Active"]
["Christie’s","https://www.christies.com/","Auction","Worldwide","Wide-Range","No","No",null,null,null,"Active"]
["City News Classifieds","http://citynews.com/","Selling","Worldwide","Wide-Range","No","No",null,null,null,"Active"]
["Classified 4 Free","https://classified4free.net/0/","Selling","Worldwide","Wide-Range","No","No",null,null,null,"Active"]
["Classified Sense","http://www.classifiedsense.com/","Selling","Worldwide","Wide-Range","No","No"]
["ClassifiedAds.com","https://www.classifiedads.com/","Selling","Worldwide","Wide-Range","No","No",null,null,null,"Active"]
["Classifieds For Free","http://www.classifiedsforfree.com/","Selling","Worldwide","Wide-Range","No","No"]
["Classifiedscentral","http://www.classifiedscentral.com/","Selling","Worldwide","Wide-Range","No","No"]
["Classsifieds 777","http://www.classifieds777.com/","Selling","Worldwide","Wide-Range","No","No"]
["Claz.org Classifieds","http://www.claz.org/","Selling","Worldwide","Wide-Range","No","No"]
["Cochrane Times Post","http://classifieds.cochranetimespost.ca/","Selling","Canada","Wide-Range","No","No",null,null,null,"Active"]
["Copart","https://www.copart.com/","Auction","Worldwide","Wide-Range","No","No",null,null,null,"Active"]
["Cowetaok.com","http://www.cowetaok.com/","Selling","Coweta, Ok","Wide-Range","No","No"]
["Craigslist","https://www.craigslist.org/","Selling","Worldwide","Wide-Range","No","No",null,null,null,"Active"]
["CWEB","http://www.cweb.com/","Newspaper","USA","Wide-Range","No","No",null,null,null,"Active"]
["Daily News","http://www.nydailynews.com/","Newspaper","New York","Wide-Range","No","No",null,null,null,"Active"]
["Dallas Morning News","http://www.dallasnews.com/","Newspaper","Dallas","Wide-Range","No","No",null,null,null,"Active"]
["Deal Bid","https://www.dealbid.com/","Selling","Worldwide","Wide-Range","No","No",null,null,null,"Active"]
["Democrat and Chronicle - Rochester, NY","http://www.democratandchronicle.com/","Newspaper","USA","Wide-Range","No","No",null,null,null,"Active"]
["Detroit Free Press","http://www.freep.com/","Newspaper","Detroit","Wide-Range","No","No",null,null,null,"Active"]
["eBay","https://www.ebay.com/","Auction/Selling","Worldwide","Wide-Range","No","No",null,null,null,"Active"]
["eBrandon.ca Classifieds","http://www.ebrandon.ca/","Selling","Canada","Wide-Range","No","No"]
["EC21","http://www.ec21.com/","Selling","Worldwide","Wide-Range","No","No"]
["Egoota Classified Site","http://egoota.com/","Selling","Worldwide","Wide-Range","No","No",null,null,null,"Active"]
["Etsy","https://www.etsy.com/","Selling","Worldwide","Wide-Range","No","No",null,null,null,"Active"]
["Everest Ads","http://www.everestads.com/","Selling","Worldwide","Wide-Range","No","No"]
["Exchange Publishing","http://www.exchangepublishing.com/","Selling","Worldwide","Wide-Range","No","No"]
["Excite","http://www.excite.com/","Search Engine","Worldwide","Wide-Range","No","No"]
["EZ classified Ads","https://ezclassifiedads.com/","Selling","Worldwide","Wide-Range","No","No",null,null,null,"Active"]
["Ezilon","http://www.ezilon.com/","Selling","Worldwide","Wide-Range","No","No"]
["Facebook Marketplace","https://www.facebook.com/marketplace","Selling","Worldwide","Wide-Range","No","No",null,null,null,"Active"]
["Fairview Post","http://classifieds.fairviewpost.com/","Selling","Worldwide","Wide-Range","No","No",null,null,null,"Active"]
["Find and List","http://www.findandlist.com/","Selling","Worldwide","Wide-Range","No","No"]
["Florida East Coast Runner","http://fleastcoastrunners.com","Selling","Florida","Runners","No","No",null,null,null,"Active"]
["Free Ad Blasts","http://safe-list.com/","Selling","Worldwide","Wide-Range","No","No",null,null,null,"Active"]
["Free Adboard","http://www.freeadboard.com/","Selling","Worldwide","Wide-Range","No","No"]
["Free Ads","https://freeadshome.com/","Selling","Worldwide","Wide-Range","No","No",null,null,null,"Active"]
["Free Ads 24","http://www.freeads24.us/","Selling","Worldwide","Wide-Range","No","No",null,null,null,"Active"]
["Free Ads In US","http://www.freeadsinus.com/","Selling","USA","Wide-Range","No","No",null,null,null,"Active"]
["Free Ads Online","https://freeadsonline.biz/0/","Selling","Worldwide","Wide-Range","No","No",null,null,null,"Active"]
["Free Ads Portal","http://www.freeadsportal.com/","Selling","Worldwide","Wide-Range","No","No",null,null,null,"Active"]
["Free Best Ads","https://freebestads.com/","Selling","Worldwide","Wide-Range","No","No",null,null,null,"Active"]
["Free Business Advertising Site","http://www.fmclassifieds.com/","Selling","Worldwide","Wide-Range","No","No"]
["Free Classifieds","http://freeclassifieds.com/","Selling","Worldwide","Wide-Range","No","No",null,null,null,"Active"]
["Free Classifieds 4 Free","http://classifieds4free.biz/","Selling","Worldwide","Wide-Range","No","No",null,null,null,"Active"]
["Free Garage Sale","http://www.freegaragesale.com/ipwform.htm","Selling","Worldwide","Garage Sale","No","No",null,null,null,"Active"]
["Free Local Classified Ads","http://www.aaafreeads.com/","Selling","Worldwide","Wide-Range","No","No",null,null,null,"Active"]
["Free Post Classified Ads","http://www.freepostclassifiedads.com/","Selling","USA","Wide-Range","No","No",null,null,null,"Active"]
["Free Trader Online","http://www.freetraderonline.com/","Selling","Worldwide","Wide-Range","No","No",null,null,null,"Active"]
["Free Web Ads","https://freewebads.biz/0/","Selling","Worldwide","Wide-Range","No","No",null,null,null,"Active"]
["Freeforads","http://www.freeforads.com/ ","Selling","Worldwide","Wide-Range","No","No",null,null,null,"Active"]
["FSJ Now!","http://www.fsjnow.com/","Selling","Canada","Wide-Range","No","No",null,null,null,"Active"]
["GarageSaleHunter","http://garagesalehunter.com/","Selling","Worldwide","Garage Sale","No","No",null,null,null,"Active"]
["Gazette Net","http://dailyhampshiregazette.adperfect.com/","Selling","Worldwide","Wide-Range","No","No",null,null,null,"Active"]
["Get Ads Online","https://getadsonline.com/0/","Selling","Worldwide","Wide-Range","No","No",null,null,null,"Active"]
["Gilmore's Classified Ads","http://www.gilmores.net","Selling","Worldwide","Wide-Range","No","No",null,null,null,"Active"]
["Give Smart","https://www.givesmart.com/","Auction","Worldwide","Wide-Range","No","No",null,null,null,"Active"]
["Global Classifieds","https://globalclassified.net/0/","Selling","Worldwide","Wide-Range","No","No",null,null,null,"Active"]
["Go LSN!","http://golsn.com/","Selling","Worldwide","Wide-Range","No","No",null,null,null,"Active"]
["Gum Tree","https://www.gumtree.com/","Selling","Worldwide","Wide-Range","No","No",null,null,null,"Active"]
["Handshake","https://www.handshake.com/","Selling","Worldwide","Wide-Range","No","No",null,null,null,"Active"]
["Hartford Courant.com","http://www.courant.com/","Newspaper","Hartford, Ct","Wide-Range","No","No"]
["Harvard Free","http://www.harvardfree.com/","Selling","Worldwide","Wide-Range","No","No",null,null,null,"Active"]
["Hip Stamps","http://www.bidstart.com/","Selling","Worldwide","Stamps","No","No"]
["Hispanic News","https://hispanic-news.com/","Newspaper","USA","Wide-Range","No","No",null,null,null,"Active"]
["Hot Free List","https://www.hotfreelist.com/","Selling","Worldwide","Wide-Range","No","No",null,null,null,"Active"]
["Hot-Web-Ads.com","http://www.hot-web-ads.com","Selling","USA","Wide-Range","No","No",null,null,null,"Active"]
["Houston Chronicle","http://www.chron.com/","Newspaper","Houston","Wide-Range","No","No",null,null,null,"Active"]
["How Bazaar","http://www.howbazaar.ca/","Selling","Ottawa, Canada","Wide-Range","No","No",null,null,null,"Active"]
["Hyt","http://www.hyt.com/","Selling","Worldwide","Wide-Range","No","No",null,null,null,"Active"]
["Ibid Free","http://www.ibidfree.com/","Auction/Selling","Worldwide","Wide-Range","No","No",null,null,null,"Active"]
["Import-Export Bulletin Board","http://www.imexbb.com/","Selling","Worldwide","Wide-Range","No","No",null,null,null,"Active"]
["Invaluable","https://www.invaluable.com/","Auction","Worldwide","Wide-Range","No","No",null,null,null,"Active"]
["ioffer.com","http://www.ioffer.com/wantads/new","Selling","Worldwide","Wide-Range","No","No",null,null,null,"Active"]
["Kitsapsun","http://classifieds.kitsapsun.com/","Selling","USA","Wide-Range","No","No",null,null,null,"Active"]
["Las Vegas Review-Journal","http://www.lvrj.com/","Newspaper","Las Vegas, NV","Wide-Range","No","No",null,null,null,"Active"]
["Link Centre.com","http://linkcentre.com/","Selling","Worldwide","Links","No","No",null,null,null,"Active"]
["List It Sell It","http://listitsellit.us/","Selling","USA","Wide-Range","No","No",null,null,null,"Active"]
["Live Auctioneers","https://www.liveauctioneers.com/","Auction","Worldwide","Wide-Range","No","No",null,null,null,"Active"]
["Los Angeles Daily News","http://www.dailynews.com/","Newspaper","Los Angeles, CA","Wide-Range","No","No",null,null,null,"Active"]
["Los Angeles Times","http://www.latimes.com/","Newspaper","Los Angeles","Wide-Range","No","No",null,null,null,"Active"]
["Milwaukee Journal Sentinel","http://www.jsonline.com/","Newspaper","Milwaukee","Wide-Range","No","No",null,null,null,"Active"]
["Must Have Ads","http://musthaveads.com/","Selling","Worldwide","Wide-Range","No","No",null,null,null,"Active"]
["My Pet Ads","https://mypetads.com/0/","Selling","Worldwide","Pet Related","No","No",null,null,null,"Active"]
["Newegg","https://www.newegg.com/","Selling","Worldwide","Wide-Range","No","No",null,null,null,"Active"]
["Newsday - New York","http://www.newsday.com/","Newspaper","Mew York","Wide-Range","No","No",null,null,null,"Active"]
["Nextdoor","https://nextdoor.com/","Selling","Worldwide","Wide-Range","No","No",null,null,null,"Active"]
["OBOAds","http://oboads.com/","Selling","Worldwide","Wide-Range","No","No",null,null,null,"Active"]
["Odole Marhetplace","https://www.oodle.com/","Selling","Worldwide","Wide-Range","No","No",null,null,null,"Active"]
["Omaha World-Herald","http://www.omaha.com/","Newspaper","USA","Wide-Range","No","No",null,null,null,"Active"]
["Online Selling Board","http://www.adlistsite.com/","Selling","Worldwide","Wide-Range","No","No",null,null,null,"Active"]
["Penny Saver USA","https://www.pennysaverusa.com/","Selling","USA","Wide-Range","No","No",null,null,null,"Active"]
["Philadelphia Inquirer","http://www.philly.com/","Newspaper","Philidelfia","Wide-Range","No","No",null,null,null,"Active"]
["Pittsburgh Post Gazette","http://post-gazette.adperfect.com/","Selling","Pittsburgh, PA","Wide-Range","No","No",null,null,null,"Active"]
["Poshmark","https://poshmark.com/","Selling","Worldwide","Wide-Range","No","No",null,null,null,"Active"]
["Post Ads Daily","http://postadsdaily.com/","Selling","Worldwide","Wide-Range","No","No",null,null,null,"Active"]
["Post Here Ads","http://posthereads.com/","Selling","Worldwide","Wide-Range","No","No",null,null,null,"Active"]
["Post Here Free","https://postherefree.com/0/","Selling","Worldwide","Wide-Range","No","No",null,null,null,"Active"]
["Post-Gazette","http://classmart.post-gazette.com/","Selling","Pitsburgh, PA","Wide-Range","No","No",null,null,null,"Active"]
["Postherefree.com","http://postherefree.com/","Selling","Worldwide","Wide-Range","No","No",null,null,null,"Active"]
["Real Free Web","http://realfreeweb.com/","Selling","Worldwide","Wide-Range","No","No",null,null,null,"Active"]
["Redbubble","https://www.redbubble.com/","Selling","Worldwide","Wide-Range","No","No",null,null,null,"Active"]
["Richmond Times","https://richmond.com/","Newspaper","Richmond","Wide-Range","No","No",null,null,null,"Active"]
["Ruby Lane","https://www.rubylane.com/","Selling","Worldwide","Wide-Range","No","No",null,null,null,"Active"]
["Saint Paul Pioneer Press","http://www.twincities.com/","Newspaper","Saint Paul","Wide-Range","No","No",null,null,null,"Active"]
["San Antonio Express-News ","http://www.mysanantonio.com/","Newspaper","San Antonio, TX","Wide-Range","No","No",null,null,null,"Active"]
["San Francisco Chronicle","http://www.sfgate.com/","Newspaper","San Francisco","Wide-Range","No","No",null,null,null,"Active"]
["San Jose Mercury News","http://www.mercurynews.com/","Newspaper","san Jose","Wide-Range","No","No",null,null,null,"Active"]
["Sotheby’s","https://www.sothebys.com/en/","Auction","Worldwide","Wide-Range","No","No",null,null,null,"Active"]
["South Florida Sun-Sentinel","http://www.sun-sentinel.com/","Newspaper","South Florida'","Wide-Range","No","No",null,null,null,"Active"]
["St. Louis Post-Dispatch","http://www.stltoday.com/","Newspaper","St. Louis","Wide-Range","No","No",null,null,null,"Active"]
["St. Petersburg Times - Florida","http://www.tampabay.com/","Newspaper","St. Petersburg","Wide-Range","No","No",null,null,null,"Active"]
["Star Tribune - Minneapolis","http://www.startribune.com/","Newspaper","Minneapolis","Wide-Range","No","No",null,null,null,"Active"]
["Sun Newspapers","http://www.yoursun.com/","Newspaper","Southwest Florida","Wide-Range","No","No",null,null,null,"Active"]
["Swappa","https://swappa.com/","Selling","Worldwide","Wide-Range","No","No",null,null,null,"Active"]
["The Akron Beacon Journal","http://www.ohio.com/","Newspaper","Akron, OH","Wide-Range","No","No",null,null,null,"Active"]
["The Arizona Republic","http://www.azcentral.com/arizonarepublic/","Newspaper","Arizona","Wide-Range","No","No",null,null,null,"Active"]
["The Atlanta Journal-Constitution","http://www.ajc.com/","Newspaper","Atlanta","Wide-Range","No","No",null,null,null,"Active"]
["The Birmingham News ","http://www.al.com/","Newspaper","Birmingham, AL","Wide-Range","No","No",null,null,null,"Active"]
["The Boston Globe ","http://www.boston.com/bostonglobe/","Newspaper","USA","Wide-Range","No","No",null,null,null,"Active"]
["The Boston Herald","http://www.bostonherald.com/","Newspaper","Boston, MA","Wide-Range","No","No",null,null,null,"Active"]
["The Charlotte Observer","http://www.charlotteobserver.com/","Newspaper","Charlotte, NC","Wide-Range","No","No",null,null,null,"Active"]
["The Cincinnati Enquirer","http://news.cincinnati.com/","Newspaper","Cincinnati, OH","Wide-Range","No","No",null,null,null,"Active"]
["The Columbus Dispatch","http://www.dispatch.com/","Newspaper","Columbus, OH","Wide-Range","No","No",null,null,null,"Active"]
["The Commercial Appeal","http://www.commercialappeal.com/","Newspaper","Memphis, TN","Wide-Range","No","No",null,null,null,"Active"]
["The Courier-Journal - Louisville","http://www.courier-journal.com/","Newspaper","Louisville","Wide-Range","No","No",null,null,null,"Active"]
["The Denver Post","http://www.denverpost.com/","Newspaper","Denver","Wide-Range","No","No",null,null,null,"Active"]
["The Des Moines Register","http://www.desmoinesregister.com/","Newspaper","Des Moines, IO","Wide-Range","No","No",null,null,null,"Active"]
["The Detroit News","http://www.detnews.com/","Newspaper","Detroit","Wide-Range","No","No",null,null,null,"Active"]
["The Florida Times-Union ","http://jacksonville.com/","Newspaper","Jacksonville, FL","Wide-Range","No","No",null,null,null,"Active"]
["The Fresno Bee","http://www.fresnobee.com/","Newspaper","Fresno, CA","Wide-Range","No","No",null,null,null,"Active"]
["The Hartford Courant","http://www.ctnow.com/","Newspaper","Hartford, CT","Wide-Range","No","No",null,null,null,"Active"]
["The Honolulu Advertiser","http://www.staradvertiser.com/","Newspaper","Honolulu, HI","Wide-Range","No","No",null,null,null,"Active"]
["The Indianapolis Star ","http://www.indystar.com/","Newspaper","Indianapolis","Wide-Range","No","No",null,null,null,"Active"]
["The Miami Herald","http://www.miamiherald.com/adperfect","Newspaper","Miami","Wide-Range","No","No",null,null,null,"Active"]
["The News & Observer","http://www.newsobserver.com/","Newspaper","Raleigh, NC","Wide-Range","No","No",null,null,null,"Active"]
["The Oklahoman","http://www.newsok.com/","Newspaper","Oklahoma","Wide-Range","No","No",null,null,null,"Active"]
["The Orange County Register - Calif.","http://www.ocregister.com/","Newspaper","Orange Vounty","Wide-Range","No","No",null,null,null,"Active"]
["The Oregonian - Portland","http://www.oregonlive.com/oregonian/","Newspaper","Portland","Wide-Range","No","No",null,null,null,"Active"]
["The Orlando Sentinel","http://www.orlandosentinel.com/","Newspaper","Orlando","Wide-Range","No","No",null,null,null,"Active"]
["The Palm Beach Post","http://www.palmbeachpost.com/","Newspaper","Palm Beach, FL","Wide-Range","No","No",null,null,null,"Active"]
["The Post  Classifieds","http://classifieds.thepost.on.ca/","Selling","Canada","Wide-Range","No","No",null,null,null,"Active"]
["The Press-Enterprise - Riverside, CA","https://www.pressenterprise.com/","Newspaper","Riverside, CA","Wide-Range","No","No",null,null,null,"Active"]
["The Providence Journal","http://www.projo.com/","Newspaper","Providence, RI","Wide-Range","No","No",null,null,null,"Active"]
["The Record - North Jersy","http://www.northjersey.com/","Newspaper","North Jersy","Wide-Range","No","No",null,null,null,"Active"]
["The Sacramento Bee ","http://www.sacbee.com/","Newspaper","Sacramento","Wide-Range","No","No",null,null,null,"Active"]
["The San Diego Union-Tribune","http://www.signonsandiego.com/","Newspaper","San Diego","Wide-Range","No","No",null,null,null,"Active"]
["The Seattle Times","http://seattletimes.nwsource.com/","Newspaper","Seatle, OR","Wide-Range","No","No",null,null,null,"Active"]
["The Star-Ledger - New Jersey","http://www.nj.com/","Newspaper","New Jersey","Wide-Range","No","No",null,null,null,"Active"]
["The State","http://www.thestate.com/","Newspaper","USA","Wide-Range","No","No",null,null,null,"Active"]
["The Sun - Baltimore","http://www.baltimoresun.com/","Newspaper","Baltimore","Wide-Range","No","No",null,null,null,"Active"]
["The Tennessean","http://www.tennessean.com/","Newspaper","Nashville, TN","Wide-Range","No","No",null,null,null,"Active"]
["The Times-Picayune - New Orleans ","http://www.nola.com/","Newspaper","New Orleans","Wide-Range","No","No",null,null,null,"Active"]
["The Trading Post","http://thetradingpostwv.com/","Selling","West Virginia","Wide-Range","No","No",null,null,null,"Active"]
["The Virginian-Pilot","http://pilotonline.com/","Newspaper","Virginia","Wide-Range","No","No",null,null,null,"Active"]
["The Washington Post","https://www.washingtonpost.com/classifieds/","Newspaper","USA","Wide-Range","No","No",null,null,null,"Active"]
["The West Vilusia Beacon","http://www.beacononlinenews.com/","Newspaper","Flortida","Wide-Range","No","No"]
["Town-Ads Free Classified Ads","http://town-ads.com/","Selling","USA","Wide-Range","No","No",null,null,null,"Active"]
["Trib Live Classifieds","http://classifieds.triblive.com/","Selling","Worldwide","Wide-Range","No","No",null,null,null,"Active"]
["Tuffclassifieds","http://tuffclassified.com/","Selling","Worldwide","Wide-Range","No","No",null,null,null,"Active"]
["Tulsa World ","http://www.tulsaworld.com/","Newspaper","Tulsa, OK","Wide-Range","No","No",null,null,null,"Active"]
["US Ebid","http://us.ebid.net/","Auction","USA","Wide-Range","No","No",null,null,null,"Active"]
["USA Today","http://www.usatoday.com/default.htm","Newspaper","USA","Wide-Range","No","No",null,null,null,"Active"]
["Vancouver-Webpages.com","http://vancouver-webpages.com/","Selling","Canada","Wide-Range","No","No",null,null,null,"Active"]
["Vicksburg Post","http://vicksburgpost.com/","Newspaper","Vicksburg","Wide-Range","No","No",null,null,null,"Active"]
["Workd Free Ads","https://www.worldfreeads.com/","Selling","Worldwide","Wide-Range","No","No",null,null,null,"Active"]
["World Stuffer","http://worldstuffer.com/","Selling","Worldwide","Wide-Range","No","No",null,null,null,"Active"]
["WRAL","http://classifieds.wral.com/","Selling","Worldwide","Wide-Range","No","No",null,null,null,"Active"]

{"sheet":"Classified Ads","index":15,"n_rows":29,"n_cols":10,"rows_kept":29,"cut":false,"hidden":false,"merged":[]}
["Classified Ads"]
["Worksheet In Protected Mode"]
[]
["Tracking Code","Product/Service","Headline","Words In Headline","Copy","Words In Copy","Contact Email","Contact Phone","Follow-up Link ","Notes"]
["A1","{Enter First Product/Service Here}","{Enter First Headline Here}",{"$f":"IF(LEN(TRIM(C5))=0,0,LEN(TRIM(C5))-LEN(SUBSTITUTE(C5,\" \",\"\"))+1)","v":4},"{Enter Copy Here}",{"$f":"IF(LEN(TRIM(E5))=0,0,LEN(TRIM(E5))-LEN(SUBSTITUTE(E5,\" \",\"\"))+1)","v":3},"{Enter Contact Email Here}","{Enter Contact Phone Here}"]
["A10",null,null,0,null,0]
["A11",null,null,0,null,0]
["A12",null,null,0,null,0]
["A13",null,null,0,null,0]
["A14",null,null,0,null,0]
["A15",null,null,0,null,0]
["A16",null,null,0,null,0]
["A17",null,null,0,null,0]
["A18",null,null,0,null,0]
["A19",null,null,0,null,0]
["A2",null,null,0,null,0]
["A20",null,null,0,null,0]
["A21",null,null,0,null,0]
["A22",null,null,0,null,0]
["A23",null,null,0,null,0]
["A24",null,null,0,null,0]
["A25",null,null,0,null,0]
["A3",null,null,0,null,0]
["A4",null,null,0,null,0]
["A5",null,null,0,null,0]
["A6",null,null,0,null,0]
["A7",null,null,0,null,0]
["A8",null,null,0,null,0]
["A9",null,null,0,null,0]